{"text_format":"3","workbook":"xlsx","n_sheets":2,"sheets":["Start","Årskalender"],"not_rendered":{"images":4,"defined_names":14},"read":"whole","date_system":"1900"}

{"sheet":"Start","index":0,"n_rows":7,"n_cols":2,"rows_kept":7}
[null,"OM DENNE SKABELON"]
[null,"Brug denne skabelon til at oprette en personlig virksomhedskalender for et hvilket som helst år."]
[null,"Udfyld Firmanavn og kontaktoplysninger og tilføj Firmalogo."]
[null,"Vælg år og angiv vigtige datoer og begivenheder."]
[null,"Bemærk: "]
[null,"Du kan få yderligere vejledning i kolonne A i regnearket ÅRSKALENDER. Denne tekst er skjult med vilje. Du kan fjerne tekst ved at markere kolonne A og derefter vælge Delete. "]
[null,"Hvis du vil vide mere om tabeller, skal du trykke på SKIFT og derefter F10, mens du er i en tabel, vælge indstillingen TABEL og derefter vælge ALTERNATIV TEKST."]

{"sheet":"Årskalender","index":1,"n_rows":55,"n_cols":21,"rows_kept":55,"merged":[[0,2,0,5],[1,1,1,9],[2,2,2,8],[2,10,2,16],[2,21,47,22],[11,2,11,8],[11,10,11,16],[20,2,20,8],[20,10,20,16],[29,2,29,8],[29,10,29,16],[38,2,38,8],[38,10,38,16],[47,2,47,8],[47,10,47,16],[50,20,54,20]]}
["Opret en Virksomhedskalender for et hvilket som helst år i dette regneark. I cellerne i denne kolonne vises en udførlig vejledning i, hvordan man bruger dette regneark. Vælg skalafeltet i cellen til højre for at ændre året i celle C1. Mærkat til Vigtige Datoer er i celle U1",null,2020,{"$nulls":17},"VIGTIGE DATOER"]
["Der er et tip i cellen til højre","Brug skalaen til at skifte kalenderår"]
["Kalender for valgte år er i cellerne C3 til og med Q55, januar-kalender i cellerne C4 til og med I10 og februar-kalender i cellerne K4 til Q10. Januar-mærkat findes i celle C3 og februar i celle K3. Angiv vigtige datoer og begivenheder i cellerne U3 til og med U42",null,"JANUAR",{"$nulls":7},"FEBRUAR",{"$nulls":9},"1. JANUAR"]
["Januar-kalendertabellen er i cellerne C4 til I10 og februar-kalendertabel i cellerne K4 til Q10. Den næste vejledning er i celle A12",null,"MAN","TIR","ONS","TOR","FRE","LØR","SØN",null,"MAN","TIR","ONS","TOR","FRE","LØR","SØN",{"$nulls":3},"NYTÅRSDAG"]
[null,null,{"$f":"IF(DAY(JanSøn1)=1,\"\",IF(AND(YEAR(JanSøn1+1)=Kalenderår,MONTH(JanSøn1+1)=1),JanSøn1+1,\"\"))","v":""},{"$f":"IF(DAY(JanSøn1)=1,\"\",IF(AND(YEAR(JanSøn1+2)=Kalenderår,MONTH(JanSøn1+2)=1),JanSøn1+2,\"\"))","v":""},{"$f":"IF(DAY(JanSøn1)=1,\"\",IF(AND(YEAR(JanSøn1+3)=Kalenderår,MONTH(JanSøn1+3)=1),JanSøn1+3,\"\"))","v":"2020-01-01"},{"$f":"IF(DAY(JanSøn1)=1,\"\",IF(AND(YEAR(JanSøn1+4)=Kalenderår,MONTH(JanSøn1+4)=1),JanSøn1+4,\"\"))","v":"2020-01-02"},{"$f":"IF(DAY(JanSøn1)=1,\"\",IF(AND(YEAR(JanSøn1+5)=Kalenderår,MONTH(JanSøn1+5)=1),JanSøn1+5,\"\"))","v":"2020-01-03"},{"$f":"IF(DAY(JanSøn1)=1,\"\",IF(AND(YEAR(JanSøn1+6)=Kalenderår,MONTH(JanSøn1+6)=1),JanSøn1+6,\"\"))","v":"2020-01-04"},{"$f":"IF(DAY(JanSøn1)=1,IF(AND(YEAR(JanSøn1)=Kalenderår,MONTH(JanSøn1)=1),JanSøn1,\"\"),IF(AND(YEAR(JanSøn1+7)=Kalenderår,MONTH(JanSøn1+7)=1),JanSøn1+7,\"\"))","v":"2020-01-05"},null,{"$f":"IF(DAY(FebSøn1)=1,\"\",IF(AND(YEAR(FebSøn1+1)=Kalenderår,MONTH(FebSøn1+1)=2),FebSøn1+1,\"\"))","v":""},{"$f":"IF(DAY(FebSøn1)=1,\"\",IF(AND(YEAR(FebSøn1+2)=Kalenderår,MONTH(FebSøn1+2)=2),FebSøn1+2,\"\"))","v":""},{"$f":"IF(DAY(FebSøn1)=1,\"\",IF(AND(YEAR(FebSøn1+3)=Kalenderår,MONTH(FebSøn1+3)=2),FebSøn1+3,\"\"))","v":""},{"$f":"IF(DAY(FebSøn1)=1,\"\",IF(AND(YEAR(FebSøn1+4)=Kalenderår,MONTH(FebSøn1+4)=2),FebSøn1+4,\"\"))","v":""},{"$f":"IF(DAY(FebSøn1)=1,\"\",IF(AND(YEAR(FebSøn1+5)=Kalenderår,MONTH(FebSøn1+5)=2),FebSøn1+5,\"\"))","v":""},{"$f":"IF(DAY(FebSøn1)=1,\"\",IF(AND(YEAR(FebSøn1+6)=Kalenderår,MONTH(FebSøn1+6)=2),FebSøn1+6,\"\"))","v":"2020-02-01"},{"$f":"IF(DAY(FebSøn1)=1,IF(AND(YEAR(FebSøn1)=Kalenderår,MONTH(FebSøn1)=2),FebSøn1,\"\"),IF(AND(YEAR(FebSøn1+7)=Kalenderår,MONTH(FebSøn1+7)=2),FebSøn1+7,\"\"))","v":"2020-02-02"}]
[null,null,{"$f":"IF(DAY(JanSøn1)=1,IF(AND(YEAR(JanSøn1+1)=Kalenderår,MONTH(JanSøn1+1)=1),JanSøn1+1,\"\"),IF(AND(YEAR(JanSøn1+8)=Kalenderår,MONTH(JanSøn1+8)=1),JanSøn1+8,\"\"))","v":"2020-01-06"},{"$f":"IF(DAY(JanSøn1)=1,IF(AND(YEAR(JanSøn1+2)=Kalenderår,MONTH(JanSøn1+2)=1),JanSøn1+2,\"\"),IF(AND(YEAR(JanSøn1+9)=Kalenderår,MONTH(JanSøn1+9)=1),JanSøn1+9,\"\"))","v":"2020-01-07"},{"$f":"IF(DAY(JanSøn1)=1,IF(AND(YEAR(JanSøn1+3)=Kalenderår,MONTH(JanSøn1+3)=1),JanSøn1+3,\"\"),IF(AND(YEAR(JanSøn1+10)=Kalenderår,MONTH(JanSøn1+10)=1),JanSøn1+10,\"\"))","v":"2020-01-08"},{"$f":"IF(DAY(JanSøn1)=1,IF(AND(YEAR(JanSøn1+4)=Kalenderår,MONTH(JanSøn1+4)=1),JanSøn1+4,\"\"),IF(AND(YEAR(JanSøn1+11)=Kalenderår,MONTH(JanSøn1+11)=1),JanSøn1+11,\"\"))","v":"2020-01-09"},{"$f":"IF(DAY(JanSøn1)=1,IF(AND(YEAR(JanSøn1+5)=Kalenderår,MONTH(JanSøn1+5)=1),JanSøn1+5,\"\"),IF(AND(YEAR(JanSøn1+12)=Kalenderår,MONTH(JanSøn1+12)=1),JanSøn1+12,\"\"))","v":"2020-01-10"},{"$f":"IF(DAY(JanSøn1)=1,IF(AND(YEAR(JanSøn1+6)=Kalenderår,MONTH(JanSøn1+6)=1),JanSøn1+6,\"\"),IF(AND(YEAR(JanSøn1+13)=Kalenderår,MONTH(JanSøn1+13)=1),JanSøn1+13,\"\"))","v":"2020-01-11"},{"$f":"IF(DAY(JanSøn1)=1,IF(AND(YEAR(JanSøn1+7)=Kalenderår,MONTH(JanSøn1+7)=1),JanSøn1+7,\"\"),IF(AND(YEAR(JanSøn1+14)=Kalenderår,MONTH(JanSøn1+14)=1),JanSøn1+14,\"\"))","v":"2020-01-12"},null,{"$f":"IF(DAY(FebSøn1)=1,IF(AND(YEAR(FebSøn1+1)=Kalenderår,MONTH(FebSøn1+1)=2),FebSøn1+1,\"\"),IF(AND(YEAR(FebSøn1+8)=Kalenderår,MONTH(FebSøn1+8)=2),FebSøn1+8,\"\"))","v":"2020-02-03"},{"$f":"IF(DAY(FebSøn1)=1,IF(AND(YEAR(FebSøn1+2)=Kalenderår,MONTH(FebSøn1+2)=2),FebSøn1+2,\"\"),IF(AND(YEAR(FebSøn1+9)=Kalenderår,MONTH(FebSøn1+9)=2),FebSøn1+9,\"\"))","v":"2020-02-04"},{"$f":"IF(DAY(FebSøn1)=1,IF(AND(YEAR(FebSøn1+3)=Kalenderår,MONTH(FebSøn1+3)=2),FebSøn1+3,\"\"),IF(AND(YEAR(FebSøn1+10)=Kalenderår,MONTH(FebSøn1+10)=2),FebSøn1+10,\"\"))","v":"2020-02-05"},{"$f":"IF(DAY(FebSøn1)=1,IF(AND(YEAR(FebSøn1+4)=Kalenderår,MONTH(FebSøn1+4)=2),FebSøn1+4,\"\"),IF(AND(YEAR(FebSøn1+11)=Kalenderår,MONTH(FebSøn1+11)=2),FebSøn1+11,\"\"))","v":"2020-02-06"},{"$f":"IF(DAY(FebSøn1)=1,IF(AND(YEAR(FebSøn1+5)=Kalenderår,MONTH(FebSøn1+5)=2),FebSøn1+5,\"\"),IF(AND(YEAR(FebSøn1+12)=Kalenderår,MONTH(FebSøn1+12)=2),FebSøn1+12,\"\"))","v":"2020-02-07"},{"$f":"IF(DAY(FebSøn1)=1,IF(AND(YEAR(FebSøn1+6)=Kalenderår,MONTH(FebSøn1+6)=2),FebSøn1+6,\"\"),IF(AND(YEAR(FebSøn1+13)=Kalenderår,MONTH(FebSøn1+13)=2),FebSøn1+13,\"\"))","v":"2020-02-08"},{"$f":"IF(DAY(FebSøn1)=1,IF(AND(YEAR(FebSøn1+7)=Kalenderår,MONTH(FebSøn1+7)=2),FebSøn1+7,\"\"),IF(AND(YEAR(FebSøn1+14)=Kalenderår,MONTH(FebSøn1+14)=2),FebSøn1+14,\"\"))","v":"2020-02-09"},{"$nulls":3},"14. FEBRUAR"]
[null,null,{"$f":"IF(DAY(JanSøn1)=1,IF(AND(YEAR(JanSøn1+8)=Kalenderår,MONTH(JanSøn1+8)=1),JanSøn1+8,\"\"),IF(AND(YEAR(JanSøn1+15)=Kalenderår,MONTH(JanSøn1+15)=1),JanSøn1+15,\"\"))","v":"2020-01-13"},{"$f":"IF(DAY(JanSøn1)=1,IF(AND(YEAR(JanSøn1+9)=Kalenderår,MONTH(JanSøn1+9)=1),JanSøn1+9,\"\"),IF(AND(YEAR(JanSøn1+16)=Kalenderår,MONTH(JanSøn1+16)=1),JanSøn1+16,\"\"))","v":"2020-01-14"},{"$f":"IF(DAY(JanSøn1)=1,IF(AND(YEAR(JanSøn1+10)=Kalenderår,MONTH(JanSøn1+10)=1),JanSøn1+10,\"\"),IF(AND(YEAR(JanSøn1+17)=Kalenderår,MONTH(JanSøn1+17)=1),JanSøn1+17,\"\"))","v":"2020-01-15"},{"$f":"IF(DAY(JanSøn1)=1,IF(AND(YEAR(JanSøn1+11)=Kalenderår,MONTH(JanSøn1+11)=1),JanSøn1+11,\"\"),IF(AND(YEAR(JanSøn1+18)=Kalenderår,MONTH(JanSøn1+18)=1),JanSøn1+18,\"\"))","v":"2020-01-16"},{"$f":"IF(DAY(JanSøn1)=1,IF(AND(YEAR(JanSøn1+12)=Kalenderår,MONTH(JanSøn1+12)=1),JanSøn1+12,\"\"),IF(AND(YEAR(JanSøn1+19)=Kalenderår,MONTH(JanSøn1+19)=1),JanSøn1+19,\"\"))","v":"2020-01-17"},{"$f":"IF(DAY(JanSøn1)=1,IF(AND(YEAR(JanSøn1+13)=Kalenderår,MONTH(JanSøn1+13)=1),JanSøn1+13,\"\"),IF(AND(YEAR(JanSøn1+20)=Kalenderår,MONTH(JanSøn1+20)=1),JanSøn1+20,\"\"))","v":"2020-01-18"},{"$f":"IF(DAY(JanSøn1)=1,IF(AND(YEAR(JanSøn1+14)=Kalenderår,MONTH(JanSøn1+14)=1),JanSøn1+14,\"\"),IF(AND(YEAR(JanSøn1+21)=Kalenderår,MONTH(JanSøn1+21)=1),JanSøn1+21,\"\"))","v":"2020-01-19"},null,{"$f":"IF(DAY(FebSøn1)=1,IF(AND(YEAR(FebSøn1+8)=Kalenderår,MONTH(FebSøn1+8)=2),FebSøn1+8,\"\"),IF(AND(YEAR(FebSøn1+15)=Kalenderår,MONTH(FebSøn1+15)=2),FebSøn1+15,\"\"))","v":"2020-02-10"},{"$f":"IF(DAY(FebSøn1)=1,IF(AND(YEAR(FebSøn1+9)=Kalenderår,MONTH(FebSøn1+9)=2),FebSøn1+9,\"\"),IF(AND(YEAR(FebSøn1+16)=Kalenderår,MONTH(FebSøn1+16)=2),FebSøn1+16,\"\"))","v":"2020-02-11"},{"$f":"IF(DAY(FebSøn1)=1,IF(AND(YEAR(FebSøn1+10)=Kalenderår,MONTH(FebSøn1+10)=2),FebSøn1+10,\"\"),IF(AND(YEAR(FebSøn1+17)=Kalenderår,MONTH(FebSøn1+17)=2),FebSøn1+17,\"\"))","v":"2020-02-12"},{"$f":"IF(DAY(FebSøn1)=1,IF(AND(YEAR(FebSøn1+11)=Kalenderår,MONTH(FebSøn1+11)=2),FebSøn1+11,\"\"),IF(AND(YEAR(FebSøn1+18)=Kalenderår,MONTH(FebSøn1+18)=2),FebSøn1+18,\"\"))","v":"2020-02-13"},{"$f":"IF(DAY(FebSøn1)=1,IF(AND(YEAR(FebSøn1+12)=Kalenderår,MONTH(FebSøn1+12)=2),FebSøn1+12,\"\"),IF(AND(YEAR(FebSøn1+19)=Kalenderår,MONTH(FebSøn1+19)=2),FebSøn1+19,\"\"))","v":"2020-02-14"},{"$f":"IF(DAY(FebSøn1)=1,IF(AND(YEAR(FebSøn1+13)=Kalenderår,MONTH(FebSøn1+13)=2),FebSøn1+13,\"\"),IF(AND(YEAR(FebSøn1+20)=Kalenderår,MONTH(FebSøn1+20)=2),FebSøn1+20,\"\"))","v":"2020-02-15"},{"$f":"IF(DAY(FebSøn1)=1,IF(AND(YEAR(FebSøn1+14)=Kalenderår,MONTH(FebSøn1+14)=2),FebSøn1+14,\"\"),IF(AND(YEAR(FebSøn1+21)=Kalenderår,MONTH(FebSøn1+21)=2),FebSøn1+21,\"\"))","v":"2020-02-16"},{"$nulls":3},"VALENTINSDAG"]
[null,null,{"$f":"IF(DAY(JanSøn1)=1,IF(AND(YEAR(JanSøn1+15)=Kalenderår,MONTH(JanSøn1+15)=1),JanSøn1+15,\"\"),IF(AND(YEAR(JanSøn1+22)=Kalenderår,MONTH(JanSøn1+22)=1),JanSøn1+22,\"\"))","v":"2020-01-20"},{"$f":"IF(DAY(JanSøn1)=1,IF(AND(YEAR(JanSøn1+16)=Kalenderår,MONTH(JanSøn1+16)=1),JanSøn1+16,\"\"),IF(AND(YEAR(JanSøn1+23)=Kalenderår,MONTH(JanSøn1+23)=1),JanSøn1+23,\"\"))","v":"2020-01-21"},{"$f":"IF(DAY(JanSøn1)=1,IF(AND(YEAR(JanSøn1+17)=Kalenderår,MONTH(JanSøn1+17)=1),JanSøn1+17,\"\"),IF(AND(YEAR(JanSøn1+24)=Kalenderår,MONTH(JanSøn1+24)=1),JanSøn1+24,\"\"))","v":"2020-01-22"},{"$f":"IF(DAY(JanSøn1)=1,IF(AND(YEAR(JanSøn1+18)=Kalenderår,MONTH(JanSøn1+18)=1),JanSøn1+18,\"\"),IF(AND(YEAR(JanSøn1+25)=Kalenderår,MONTH(JanSøn1+25)=1),JanSøn1+25,\"\"))","v":"2020-01-23"},{"$f":"IF(DAY(JanSøn1)=1,IF(AND(YEAR(JanSøn1+19)=Kalenderår,MONTH(JanSøn1+19)=1),JanSøn1+19,\"\"),IF(AND(YEAR(JanSøn1+26)=Kalenderår,MONTH(JanSøn1+26)=1),JanSøn1+26,\"\"))","v":"2020-01-24"},{"$f":"IF(DAY(JanSøn1)=1,IF(AND(YEAR(JanSøn1+20)=Kalenderår,MONTH(JanSøn1+20)=1),JanSøn1+20,\"\"),IF(AND(YEAR(JanSøn1+27)=Kalenderår,MONTH(JanSøn1+27)=1),JanSøn1+27,\"\"))","v":"2020-01-25"},{"$f":"IF(DAY(JanSøn1)=1,IF(AND(YEAR(JanSøn1+21)=Kalenderår,MONTH(JanSøn1+21)=1),JanSøn1+21,\"\"),IF(AND(YEAR(JanSøn1+28)=Kalenderår,MONTH(JanSøn1+28)=1),JanSøn1+28,\"\"))","v":"2020-01-26"},null,{"$f":"IF(DAY(FebSøn1)=1,IF(AND(YEAR(FebSøn1+15)=Kalenderår,MONTH(FebSøn1+15)=2),FebSøn1+15,\"\"),IF(AND(YEAR(FebSøn1+22)=Kalenderår,MONTH(FebSøn1+22)=2),FebSøn1+22,\"\"))","v":"2020-02-17"},{"$f":"IF(DAY(FebSøn1)=1,IF(AND(YEAR(FebSøn1+16)=Kalenderår,MONTH(FebSøn1+16)=2),FebSøn1+16,\"\"),IF(AND(YEAR(FebSøn1+23)=Kalenderår,MONTH(FebSøn1+23)=2),FebSøn1+23,\"\"))","v":"2020-02-18"},{"$f":"IF(DAY(FebSøn1)=1,IF(AND(YEAR(FebSøn1+17)=Kalenderår,MONTH(FebSøn1+17)=2),FebSøn1+17,\"\"),IF(AND(YEAR(FebSøn1+24)=Kalenderår,MONTH(FebSøn1+24)=2),FebSøn1+24,\"\"))","v":"2020-02-19"},{"$f":"IF(DAY(FebSøn1)=1,IF(AND(YEAR(FebSøn1+18)=Kalenderår,MONTH(FebSøn1+18)=2),FebSøn1+18,\"\"),IF(AND(YEAR(FebSøn1+25)=Kalenderår,MONTH(FebSøn1+25)=2),FebSøn1+25,\"\"))","v":"2020-02-20"},{"$f":"IF(DAY(FebSøn1)=1,IF(AND(YEAR(FebSøn1+19)=Kalenderår,MONTH(FebSøn1+19)=2),FebSøn1+19,\"\"),IF(AND(YEAR(FebSøn1+26)=Kalenderår,MONTH(FebSøn1+26)=2),FebSøn1+26,\"\"))","v":"2020-02-21"},{"$f":"IF(DAY(FebSøn1)=1,IF(AND(YEAR(FebSøn1+20)=Kalenderår,MONTH(FebSøn1+20)=2),FebSøn1+20,\"\"),IF(AND(YEAR(FebSøn1+27)=Kalenderår,MONTH(FebSøn1+27)=2),FebSøn1+27,\"\"))","v":"2020-02-22"},{"$f":"IF(DAY(FebSøn1)=1,IF(AND(YEAR(FebSøn1+21)=Kalenderår,MONTH(FebSøn1+21)=2),FebSøn1+21,\"\"),IF(AND(YEAR(FebSøn1+28)=Kalenderår,MONTH(FebSøn1+28)=2),FebSøn1+28,\"\"))","v":"2020-02-23"}]
[null,null,{"$f":"IF(DAY(JanSøn1)=1,IF(AND(YEAR(JanSøn1+22)=Kalenderår,MONTH(JanSøn1+22)=1),JanSøn1+22,\"\"),IF(AND(YEAR(JanSøn1+29)=Kalenderår,MONTH(JanSøn1+29)=1),JanSøn1+29,\"\"))","v":"2020-01-27"},{"$f":"IF(DAY(JanSøn1)=1,IF(AND(YEAR(JanSøn1+23)=Kalenderår,MONTH(JanSøn1+23)=1),JanSøn1+23,\"\"),IF(AND(YEAR(JanSøn1+30)=Kalenderår,MONTH(JanSøn1+30)=1),JanSøn1+30,\"\"))","v":"2020-01-28"},{"$f":"IF(DAY(JanSøn1)=1,IF(AND(YEAR(JanSøn1+24)=Kalenderår,MONTH(JanSøn1+24)=1),JanSøn1+24,\"\"),IF(AND(YEAR(JanSøn1+31)=Kalenderår,MONTH(JanSøn1+31)=1),JanSøn1+31,\"\"))","v":"2020-01-29"},{"$f":"IF(DAY(JanSøn1)=1,IF(AND(YEAR(JanSøn1+25)=Kalenderår,MONTH(JanSøn1+25)=1),JanSøn1+25,\"\"),IF(AND(YEAR(JanSøn1+32)=Kalenderår,MONTH(JanSøn1+32)=1),JanSøn1+32,\"\"))","v":"2020-01-30"},{"$f":"IF(DAY(JanSøn1)=1,IF(AND(YEAR(JanSøn1+26)=Kalenderår,MONTH(JanSøn1+26)=1),JanSøn1+26,\"\"),IF(AND(YEAR(JanSøn1+33)=Kalenderår,MONTH(JanSøn1+33)=1),JanSøn1+33,\"\"))","v":"2020-01-31"},{"$f":"IF(DAY(JanSøn1)=1,IF(AND(YEAR(JanSøn1+27)=Kalenderår,MONTH(JanSøn1+27)=1),JanSøn1+27,\"\"),IF(AND(YEAR(JanSøn1+34)=Kalenderår,MONTH(JanSøn1+34)=1),JanSøn1+34,\"\"))","v":""},{"$f":"IF(DAY(JanSøn1)=1,IF(AND(YEAR(JanSøn1+28)=Kalenderår,MONTH(JanSøn1+28)=1),JanSøn1+28,\"\"),IF(AND(YEAR(JanSøn1+35)=Kalenderår,MONTH(JanSøn1+35)=1),JanSøn1+35,\"\"))","v":""},null,{"$f":"IF(DAY(FebSøn1)=1,IF(AND(YEAR(FebSøn1+22)=Kalenderår,MONTH(FebSøn1+22)=2),FebSøn1+22,\"\"),IF(AND(YEAR(FebSøn1+29)=Kalenderår,MONTH(FebSøn1+29)=2),FebSøn1+29,\"\"))","v":"2020-02-24"},{"$f":"IF(DAY(FebSøn1)=1,IF(AND(YEAR(FebSøn1+23)=Kalenderår,MONTH(FebSøn1+23)=2),FebSøn1+23,\"\"),IF(AND(YEAR(FebSøn1+30)=Kalenderår,MONTH(FebSøn1+30)=2),FebSøn1+30,\"\"))","v":"2020-02-25"},{"$f":"IF(DAY(FebSøn1)=1,IF(AND(YEAR(FebSøn1+24)=Kalenderår,MONTH(FebSøn1+24)=2),FebSøn1+24,\"\"),IF(AND(YEAR(FebSøn1+31)=Kalenderår,MONTH(FebSøn1+31)=2),FebSøn1+31,\"\"))","v":"2020-02-26"},{"$f":"IF(DAY(FebSøn1)=1,IF(AND(YEAR(FebSøn1+25)=Kalenderår,MONTH(FebSøn1+25)=2),FebSøn1+25,\"\"),IF(AND(YEAR(FebSøn1+32)=Kalenderår,MONTH(FebSøn1+32)=2),FebSøn1+32,\"\"))","v":"2020-02-27"},{"$f":"IF(DAY(FebSøn1)=1,IF(AND(YEAR(FebSøn1+26)=Kalenderår,MONTH(FebSøn1+26)=2),FebSøn1+26,\"\"),IF(AND(YEAR(FebSøn1+33)=Kalenderår,MONTH(FebSøn1+33)=2),FebSøn1+33,\"\"))","v":"2020-02-28"},{"$f":"IF(DAY(FebSøn1)=1,IF(AND(YEAR(FebSøn1+27)=Kalenderår,MONTH(FebSøn1+27)=2),FebSøn1+27,\"\"),IF(AND(YEAR(FebSøn1+34)=Kalenderår,MONTH(FebSøn1+34)=2),FebSøn1+34,\"\"))","v":"2020-02-29"},{"$f":"IF(DAY(FebSøn1)=1,IF(AND(YEAR(FebSøn1+28)=Kalenderår,MONTH(FebSøn1+28)=2),FebSøn1+28,\"\"),IF(AND(YEAR(FebSøn1+35)=Kalenderår,MONTH(FebSøn1+35)=2),FebSøn1+35,\"\"))","v":""},{"$nulls":3},"22. FEBRUAR"]
[null,null,{"$f":"IF(DAY(JanSøn1)=1,IF(AND(YEAR(JanSøn1+29)=Kalenderår,MONTH(JanSøn1+29)=1),JanSøn1+29,\"\"),IF(AND(YEAR(JanSøn1+36)=Kalenderår,MONTH(JanSøn1+36)=1),JanSøn1+36,\"\"))","v":""},{"$f":"IF(DAY(JanSøn1)=1,IF(AND(YEAR(JanSøn1+30)=Kalenderår,MONTH(JanSøn1+30)=1),JanSøn1+30,\"\"),IF(AND(YEAR(JanSøn1+37)=Kalenderår,MONTH(JanSøn1+37)=1),JanSøn1+37,\"\"))","v":""},{"$f":"IF(DAY(JanSøn1)=1,IF(AND(YEAR(JanSøn1+31)=Kalenderår,MONTH(JanSøn1+31)=1),JanSøn1+31,\"\"),IF(AND(YEAR(JanSøn1+38)=Kalenderår,MONTH(JanSøn1+38)=1),JanSøn1+38,\"\"))","v":""},{"$f":"IF(DAY(JanSøn1)=1,IF(AND(YEAR(JanSøn1+32)=Kalenderår,MONTH(JanSøn1+32)=1),JanSøn1+32,\"\"),IF(AND(YEAR(JanSøn1+39)=Kalenderår,MONTH(JanSøn1+39)=1),JanSøn1+39,\"\"))","v":""},{"$f":"IF(DAY(JanSøn1)=1,IF(AND(YEAR(JanSøn1+33)=Kalenderår,MONTH(JanSøn1+33)=1),JanSøn1+33,\"\"),IF(AND(YEAR(JanSøn1+40)=Kalenderår,MONTH(JanSøn1+40)=1),JanSøn1+40,\"\"))","v":""},{"$f":"IF(DAY(JanSøn1)=1,IF(AND(YEAR(JanSøn1+34)=Kalenderår,MONTH(JanSøn1+34)=1),JanSøn1+34,\"\"),IF(AND(YEAR(JanSøn1+41)=Kalenderår,MONTH(JanSøn1+41)=1),JanSøn1+41,\"\"))","v":""},{"$f":"IF(DAY(JanSøn1)=1,IF(AND(YEAR(JanSøn1+35)=Kalenderår,MONTH(JanSøn1+35)=1),JanSøn1+35,\"\"),IF(AND(YEAR(JanSøn1+42)=Kalenderår,MONTH(JanSøn1+42)=1),JanSøn1+42,\"\"))","v":""},null,{"$f":"IF(DAY(FebSøn1)=1,IF(AND(YEAR(FebSøn1+29)=Kalenderår,MONTH(FebSøn1+29)=2),FebSøn1+29,\"\"),IF(AND(YEAR(FebSøn1+36)=Kalenderår,MONTH(FebSøn1+36)=2),FebSøn1+36,\"\"))","v":""},{"$f":"IF(DAY(FebSøn1)=1,IF(AND(YEAR(FebSøn1+30)=Kalenderår,MONTH(FebSøn1+30)=2),FebSøn1+30,\"\"),IF(AND(YEAR(FebSøn1+37)=Kalenderår,MONTH(FebSøn1+37)=2),FebSøn1+37,\"\"))","v":""},{"$f":"IF(DAY(FebSøn1)=1,IF(AND(YEAR(FebSøn1+31)=Kalenderår,MONTH(FebSøn1+31)=2),FebSøn1+31,\"\"),IF(AND(YEAR(FebSøn1+38)=Kalenderår,MONTH(FebSøn1+38)=2),FebSøn1+38,\"\"))","v":""},{"$f":"IF(DAY(FebSøn1)=1,IF(AND(YEAR(FebSøn1+32)=Kalenderår,MONTH(FebSøn1+32)=2),FebSøn1+32,\"\"),IF(AND(YEAR(FebSøn1+39)=Kalenderår,MONTH(FebSøn1+39)=2),FebSøn1+39,\"\"))","v":""},{"$f":"IF(DAY(FebSøn1)=1,IF(AND(YEAR(FebSøn1+33)=Kalenderår,MONTH(FebSøn1+33)=2),FebSøn1+33,\"\"),IF(AND(YEAR(FebSøn1+40)=Kalenderår,MONTH(FebSøn1+40)=2),FebSøn1+40,\"\"))","v":""},{"$f":"IF(DAY(FebSøn1)=1,IF(AND(YEAR(FebSøn1+34)=Kalenderår,MONTH(FebSøn1+34)=2),FebSøn1+34,\"\"),IF(AND(YEAR(FebSøn1+41)=Kalenderår,MONTH(FebSøn1+41)=2),FebSøn1+41,\"\"))","v":""},{"$f":"IF(DAY(FebSøn1)=1,IF(AND(YEAR(FebSøn1+35)=Kalenderår,MONTH(FebSøn1+35)=2),FebSøn1+35,\"\"),IF(AND(YEAR(FebSøn1+42)=Kalenderår,MONTH(FebSøn1+42)=2),FebSøn1+42,\"\"))","v":""},{"$nulls":3},"ÅBENT HUS"]
[]
["Marts-mærkat er i celle C12 og April i celle K12",null,"MARTS",{"$nulls":7},"APRIL"]
["Marts-kalendertabel findes i cellerne C13 til I19 og April-kalendertabel i cellerne K13 til Q19. Den næste vejledning er i celle A21",null,"MAN","TIR","ONS","TOR","FRE","LØR","SØN",null,"MAN","TIR","ONS","TOR","FRE","LØR","SØN"]
[null,null,{"$f":"IF(DAY(MarSun1)=1,\"\",IF(AND(YEAR(MarSun1+1)=Kalenderår,MONTH(MarSun1+1)=3),MarSun1+1,\"\"))","v":""},{"$f":"IF(DAY(MarSun1)=1,\"\",IF(AND(YEAR(MarSun1+2)=Kalenderår,MONTH(MarSun1+2)=3),MarSun1+2,\"\"))","v":""},{"$f":"IF(DAY(MarSun1)=1,\"\",IF(AND(YEAR(MarSun1+3)=Kalenderår,MONTH(MarSun1+3)=3),MarSun1+3,\"\"))","v":""},{"$f":"IF(DAY(MarSun1)=1,\"\",IF(AND(YEAR(MarSun1+4)=Kalenderår,MONTH(MarSun1+4)=3),MarSun1+4,\"\"))","v":""},{"$f":"IF(DAY(MarSun1)=1,\"\",IF(AND(YEAR(MarSun1+5)=Kalenderår,MONTH(MarSun1+5)=3),MarSun1+5,\"\"))","v":""},{"$f":"IF(DAY(MarSun1)=1,\"\",IF(AND(YEAR(MarSun1+6)=Kalenderår,MONTH(MarSun1+6)=3),MarSun1+6,\"\"))","v":""},{"$f":"IF(DAY(MarSun1)=1,IF(AND(YEAR(MarSun1)=Kalenderår,MONTH(MarSun1)=3),MarSun1,\"\"),IF(AND(YEAR(MarSun1+7)=Kalenderår,MONTH(MarSun1+7)=3),MarSun1+7,\"\"))","v":"2020-03-01"},null,{"$f":"IF(DAY(AprSøn1)=1,\"\",IF(AND(YEAR(AprSøn1+1)=Kalenderår,MONTH(AprSøn1+1)=4),AprSøn1+1,\"\"))","v":""},{"$f":"IF(DAY(AprSøn1)=1,\"\",IF(AND(YEAR(AprSøn1+2)=Kalenderår,MONTH(AprSøn1+2)=4),AprSøn1+2,\"\"))","v":""},{"$f":"IF(DAY(AprSøn1)=1,\"\",IF(AND(YEAR(AprSøn1+3)=Kalenderår,MONTH(AprSøn1+3)=4),AprSøn1+3,\"\"))","v":"2020-04-01"},{"$f":"IF(DAY(AprSøn1)=1,\"\",IF(AND(YEAR(AprSøn1+4)=Kalenderår,MONTH(AprSøn1+4)=4),AprSøn1+4,\"\"))","v":"2020-04-02"},{"$f":"IF(DAY(AprSøn1)=1,\"\",IF(AND(YEAR(AprSøn1+5)=Kalenderår,MONTH(AprSøn1+5)=4),AprSøn1+5,\"\"))","v":"2020-04-03"},{"$f":"IF(DAY(AprSøn1)=1,\"\",IF(AND(YEAR(AprSøn1+6)=Kalenderår,MONTH(AprSøn1+6)=4),AprSøn1+6,\"\"))","v":"2020-04-04"},{"$f":"IF(DAY(AprSøn1)=1,IF(AND(YEAR(AprSøn1)=Kalenderår,MONTH(AprSøn1)=4),AprSøn1,\"\"),IF(AND(YEAR(AprSøn1+7)=Kalenderår,MONTH(AprSøn1+7)=4),AprSøn1+7,\"\"))","v":"2020-04-05"}]
[null,null,{"$f":"IF(DAY(MarSun1)=1,IF(AND(YEAR(MarSun1+1)=Kalenderår,MONTH(MarSun1+1)=3),MarSun1+1,\"\"),IF(AND(YEAR(MarSun1+8)=Kalenderår,MONTH(MarSun1+8)=3),MarSun1+8,\"\"))","v":"2020-03-02"},{"$f":"IF(DAY(MarSun1)=1,IF(AND(YEAR(MarSun1+2)=Kalenderår,MONTH(MarSun1+2)=3),MarSun1+2,\"\"),IF(AND(YEAR(MarSun1+9)=Kalenderår,MONTH(MarSun1+9)=3),MarSun1+9,\"\"))","v":"2020-03-03"},{"$f":"IF(DAY(MarSun1)=1,IF(AND(YEAR(MarSun1+3)=Kalenderår,MONTH(MarSun1+3)=3),MarSun1+3,\"\"),IF(AND(YEAR(MarSun1+10)=Kalenderår,MONTH(MarSun1+10)=3),MarSun1+10,\"\"))","v":"2020-03-04"},{"$f":"IF(DAY(MarSun1)=1,IF(AND(YEAR(MarSun1+4)=Kalenderår,MONTH(MarSun1+4)=3),MarSun1+4,\"\"),IF(AND(YEAR(MarSun1+11)=Kalenderår,MONTH(MarSun1+11)=3),MarSun1+11,\"\"))","v":"2020-03-05"},{"$f":"IF(DAY(MarSun1)=1,IF(AND(YEAR(MarSun1+5)=Kalenderår,MONTH(MarSun1+5)=3),MarSun1+5,\"\"),IF(AND(YEAR(MarSun1+12)=Kalenderår,MONTH(MarSun1+12)=3),MarSun1+12,\"\"))","v":"2020-03-06"},{"$f":"IF(DAY(MarSun1)=1,IF(AND(YEAR(MarSun1+6)=Kalenderår,MONTH(MarSun1+6)=3),MarSun1+6,\"\"),IF(AND(YEAR(MarSun1+13)=Kalenderår,MONTH(MarSun1+13)=3),MarSun1+13,\"\"))","v":"2020-03-07"},{"$f":"IF(DAY(MarSun1)=1,IF(AND(YEAR(MarSun1+7)=Kalenderår,MONTH(MarSun1+7)=3),MarSun1+7,\"\"),IF(AND(YEAR(MarSun1+14)=Kalenderår,MONTH(MarSun1+14)=3),MarSun1+14,\"\"))","v":"2020-03-08"},null,{"$f":"IF(DAY(AprSøn1)=1,IF(AND(YEAR(AprSøn1+1)=Kalenderår,MONTH(AprSøn1+1)=4),AprSøn1+1,\"\"),IF(AND(YEAR(AprSøn1+8)=Kalenderår,MONTH(AprSøn1+8)=4),AprSøn1+8,\"\"))","v":"2020-04-06"},{"$f":"IF(DAY(AprSøn1)=1,IF(AND(YEAR(AprSøn1+2)=Kalenderår,MONTH(AprSøn1+2)=4),AprSøn1+2,\"\"),IF(AND(YEAR(AprSøn1+9)=Kalenderår,MONTH(AprSøn1+9)=4),AprSøn1+9,\"\"))","v":"2020-04-07"},{"$f":"IF(DAY(AprSøn1)=1,IF(AND(YEAR(AprSøn1+3)=Kalenderår,MONTH(AprSøn1+3)=4),AprSøn1+3,\"\"),IF(AND(YEAR(AprSøn1+10)=Kalenderår,MONTH(AprSøn1+10)=4),AprSøn1+10,\"\"))","v":"2020-04-08"},{"$f":"IF(DAY(AprSøn1)=1,IF(AND(YEAR(AprSøn1+4)=Kalenderår,MONTH(AprSøn1+4)=4),AprSøn1+4,\"\"),IF(AND(YEAR(AprSøn1+11)=Kalenderår,MONTH(AprSøn1+11)=4),AprSøn1+11,\"\"))","v":"2020-04-09"},{"$f":"IF(DAY(AprSøn1)=1,IF(AND(YEAR(AprSøn1+5)=Kalenderår,MONTH(AprSøn1+5)=4),AprSøn1+5,\"\"),IF(AND(YEAR(AprSøn1+12)=Kalenderår,MONTH(AprSøn1+12)=4),AprSøn1+12,\"\"))","v":"2020-04-10"},{"$f":"IF(DAY(AprSøn1)=1,IF(AND(YEAR(AprSøn1+6)=Kalenderår,MONTH(AprSøn1+6)=4),AprSøn1+6,\"\"),IF(AND(YEAR(AprSøn1+13)=Kalenderår,MONTH(AprSøn1+13)=4),AprSøn1+13,\"\"))","v":"2020-04-11"},{"$f":"IF(DAY(AprSøn1)=1,IF(AND(YEAR(AprSøn1+7)=Kalenderår,MONTH(AprSøn1+7)=4),AprSøn1+7,\"\"),IF(AND(YEAR(AprSøn1+14)=Kalenderår,MONTH(AprSøn1+14)=4),AprSøn1+14,\"\"))","v":"2020-04-12"}]
[null,null,{"$f":"IF(DAY(MarSun1)=1,IF(AND(YEAR(MarSun1+8)=Kalenderår,MONTH(MarSun1+8)=3),MarSun1+8,\"\"),IF(AND(YEAR(MarSun1+15)=Kalenderår,MONTH(MarSun1+15)=3),MarSun1+15,\"\"))","v":"2020-03-09"},{"$f":"IF(DAY(MarSun1)=1,IF(AND(YEAR(MarSun1+9)=Kalenderår,MONTH(MarSun1+9)=3),MarSun1+9,\"\"),IF(AND(YEAR(MarSun1+16)=Kalenderår,MONTH(MarSun1+16)=3),MarSun1+16,\"\"))","v":"2020-03-10"},{"$f":"IF(DAY(MarSun1)=1,IF(AND(YEAR(MarSun1+10)=Kalenderår,MONTH(MarSun1+10)=3),MarSun1+10,\"\"),IF(AND(YEAR(MarSun1+17)=Kalenderår,MONTH(MarSun1+17)=3),MarSun1+17,\"\"))","v":"2020-03-11"},{"$f":"IF(DAY(MarSun1)=1,IF(AND(YEAR(MarSun1+11)=Kalenderår,MONTH(MarSun1+11)=3),MarSun1+11,\"\"),IF(AND(YEAR(MarSun1+18)=Kalenderår,MONTH(MarSun1+18)=3),MarSun1+18,\"\"))","v":"2020-03-12"},{"$f":"IF(DAY(MarSun1)=1,IF(AND(YEAR(MarSun1+12)=Kalenderår,MONTH(MarSun1+12)=3),MarSun1+12,\"\"),IF(AND(YEAR(MarSun1+19)=Kalenderår,MONTH(MarSun1+19)=3),MarSun1+19,\"\"))","v":"2020-03-13"},{"$f":"IF(DAY(MarSun1)=1,IF(AND(YEAR(MarSun1+13)=Kalenderår,MONTH(MarSun1+13)=3),MarSun1+13,\"\"),IF(AND(YEAR(MarSun1+20)=Kalenderår,MONTH(MarSun1+20)=3),MarSun1+20,\"\"))","v":"2020-03-14"},{"$f":"IF(DAY(MarSun1)=1,IF(AND(YEAR(MarSun1+14)=Kalenderår,MONTH(MarSun1+14)=3),MarSun1+14,\"\"),IF(AND(YEAR(MarSun1+21)=Kalenderår,MONTH(MarSun1+21)=3),MarSun1+21,\"\"))","v":"2020-03-15"},null,{"$f":"IF(DAY(AprSøn1)=1,IF(AND(YEAR(AprSøn1+8)=Kalenderår,MONTH(AprSøn1+8)=4),AprSøn1+8,\"\"),IF(AND(YEAR(AprSøn1+15)=Kalenderår,MONTH(AprSøn1+15)=4),AprSøn1+15,\"\"))","v":"2020-04-13"},{"$f":"IF(DAY(AprSøn1)=1,IF(AND(YEAR(AprSøn1+9)=Kalenderår,MONTH(AprSøn1+9)=4),AprSøn1+9,\"\"),IF(AND(YEAR(AprSøn1+16)=Kalenderår,MONTH(AprSøn1+16)=4),AprSøn1+16,\"\"))","v":"2020-04-14"},{"$f":"IF(DAY(AprSøn1)=1,IF(AND(YEAR(AprSøn1+10)=Kalenderår,MONTH(AprSøn1+10)=4),AprSøn1+10,\"\"),IF(AND(YEAR(AprSøn1+17)=Kalenderår,MONTH(AprSøn1+17)=4),AprSøn1+17,\"\"))","v":"2020-04-15"},{"$f":"IF(DAY(AprSøn1)=1,IF(AND(YEAR(AprSøn1+11)=Kalenderår,MONTH(AprSøn1+11)=4),AprSøn1+11,\"\"),IF(AND(YEAR(AprSøn1+18)=Kalenderår,MONTH(AprSøn1+18)=4),AprSøn1+18,\"\"))","v":"2020-04-16"},{"$f":"IF(DAY(AprSøn1)=1,IF(AND(YEAR(AprSøn1+12)=Kalenderår,MONTH(AprSøn1+12)=4),AprSøn1+12,\"\"),IF(AND(YEAR(AprSøn1+19)=Kalenderår,MONTH(AprSøn1+19)=4),AprSøn1+19,\"\"))","v":"2020-04-17"},{"$f":"IF(DAY(AprSøn1)=1,IF(AND(YEAR(AprSøn1+13)=Kalenderår,MONTH(AprSøn1+13)=4),AprSøn1+13,\"\"),IF(AND(YEAR(AprSøn1+20)=Kalenderår,MONTH(AprSøn1+20)=4),AprSøn1+20,\"\"))","v":"2020-04-18"},{"$f":"IF(DAY(AprSøn1)=1,IF(AND(YEAR(AprSøn1+14)=Kalenderår,MONTH(AprSøn1+14)=4),AprSøn1+14,\"\"),IF(AND(YEAR(AprSøn1+21)=Kalenderår,MONTH(AprSøn1+21)=4),AprSøn1+21,\"\"))","v":"2020-04-19"}]
[null,null,{"$f":"IF(DAY(MarSun1)=1,IF(AND(YEAR(MarSun1+15)=Kalenderår,MONTH(MarSun1+15)=3),MarSun1+15,\"\"),IF(AND(YEAR(MarSun1+22)=Kalenderår,MONTH(MarSun1+22)=3),MarSun1+22,\"\"))","v":"2020-03-16"},{"$f":"IF(DAY(MarSun1)=1,IF(AND(YEAR(MarSun1+16)=Kalenderår,MONTH(MarSun1+16)=3),MarSun1+16,\"\"),IF(AND(YEAR(MarSun1+23)=Kalenderår,MONTH(MarSun1+23)=3),MarSun1+23,\"\"))","v":"2020-03-17"},{"$f":"IF(DAY(MarSun1)=1,IF(AND(YEAR(MarSun1+17)=Kalenderår,MONTH(MarSun1+17)=3),MarSun1+17,\"\"),IF(AND(YEAR(MarSun1+24)=Kalenderår,MONTH(MarSun1+24)=3),MarSun1+24,\"\"))","v":"2020-03-18"},{"$f":"IF(DAY(MarSun1)=1,IF(AND(YEAR(MarSun1+18)=Kalenderår,MONTH(MarSun1+18)=3),MarSun1+18,\"\"),IF(AND(YEAR(MarSun1+25)=Kalenderår,MONTH(MarSun1+25)=3),MarSun1+25,\"\"))","v":"2020-03-19"},{"$f":"IF(DAY(MarSun1)=1,IF(AND(YEAR(MarSun1+19)=Kalenderår,MONTH(MarSun1+19)=3),MarSun1+19,\"\"),IF(AND(YEAR(MarSun1+26)=Kalenderår,MONTH(MarSun1+26)=3),MarSun1+26,\"\"))","v":"2020-03-20"},{"$f":"IF(DAY(MarSun1)=1,IF(AND(YEAR(MarSun1+20)=Kalenderår,MONTH(MarSun1+20)=3),MarSun1+20,\"\"),IF(AND(YEAR(MarSun1+27)=Kalenderår,MONTH(MarSun1+27)=3),MarSun1+27,\"\"))","v":"2020-03-21"},{"$f":"IF(DAY(MarSun1)=1,IF(AND(YEAR(MarSun1+21)=Kalenderår,MONTH(MarSun1+21)=3),MarSun1+21,\"\"),IF(AND(YEAR(MarSun1+28)=Kalenderår,MONTH(MarSun1+28)=3),MarSun1+28,\"\"))","v":"2020-03-22"},null,{"$f":"IF(DAY(AprSøn1)=1,IF(AND(YEAR(AprSøn1+15)=Kalenderår,MONTH(AprSøn1+15)=4),AprSøn1+15,\"\"),IF(AND(YEAR(AprSøn1+22)=Kalenderår,MONTH(AprSøn1+22)=4),AprSøn1+22,\"\"))","v":"2020-04-20"},{"$f":"IF(DAY(AprSøn1)=1,IF(AND(YEAR(AprSøn1+16)=Kalenderår,MONTH(AprSøn1+16)=4),AprSøn1+16,\"\"),IF(AND(YEAR(AprSøn1+23)=Kalenderår,MONTH(AprSøn1+23)=4),AprSøn1+23,\"\"))","v":"2020-04-21"},{"$f":"IF(DAY(AprSøn1)=1,IF(AND(YEAR(AprSøn1+17)=Kalenderår,MONTH(AprSøn1+17)=4),AprSøn1+17,\"\"),IF(AND(YEAR(AprSøn1+24)=Kalenderår,MONTH(AprSøn1+24)=4),AprSøn1+24,\"\"))","v":"2020-04-22"},{"$f":"IF(DAY(AprSøn1)=1,IF(AND(YEAR(AprSøn1+18)=Kalenderår,MONTH(AprSøn1+18)=4),AprSøn1+18,\"\"),IF(AND(YEAR(AprSøn1+25)=Kalenderår,MONTH(AprSøn1+25)=4),AprSøn1+25,\"\"))","v":"2020-04-23"},{"$f":"IF(DAY(AprSøn1)=1,IF(AND(YEAR(AprSøn1+19)=Kalenderår,MONTH(AprSøn1+19)=4),AprSøn1+19,\"\"),IF(AND(YEAR(AprSøn1+26)=Kalenderår,MONTH(AprSøn1+26)=4),AprSøn1+26,\"\"))","v":"2020-04-24"},{"$f":"IF(DAY(AprSøn1)=1,IF(AND(YEAR(AprSøn1+20)=Kalenderår,MONTH(AprSøn1+20)=4),AprSøn1+20,\"\"),IF(AND(YEAR(AprSøn1+27)=Kalenderår,MONTH(AprSøn1+27)=4),AprSøn1+27,\"\"))","v":"2020-04-25"},{"$f":"IF(DAY(AprSøn1)=1,IF(AND(YEAR(AprSøn1+21)=Kalenderår,MONTH(AprSøn1+21)=4),AprSøn1+21,\"\"),IF(AND(YEAR(AprSøn1+28)=Kalenderår,MONTH(AprSøn1+28)=4),AprSøn1+28,\"\"))","v":"2020-04-26"}]
[null,null,{"$f":"IF(DAY(MarSun1)=1,IF(AND(YEAR(MarSun1+22)=Kalenderår,MONTH(MarSun1+22)=3),MarSun1+22,\"\"),IF(AND(YEAR(MarSun1+29)=Kalenderår,MONTH(MarSun1+29)=3),MarSun1+29,\"\"))","v":"2020-03-23"},{"$f":"IF(DAY(MarSun1)=1,IF(AND(YEAR(MarSun1+23)=Kalenderår,MONTH(MarSun1+23)=3),MarSun1+23,\"\"),IF(AND(YEAR(MarSun1+30)=Kalenderår,MONTH(MarSun1+30)=3),MarSun1+30,\"\"))","v":"2020-03-24"},{"$f":"IF(DAY(MarSun1)=1,IF(AND(YEAR(MarSun1+24)=Kalenderår,MONTH(MarSun1+24)=3),MarSun1+24,\"\"),IF(AND(YEAR(MarSun1+31)=Kalenderår,MONTH(MarSun1+31)=3),MarSun1+31,\"\"))","v":"2020-03-25"},{"$f":"IF(DAY(MarSun1)=1,IF(AND(YEAR(MarSun1+25)=Kalenderår,MONTH(MarSun1+25)=3),MarSun1+25,\"\"),IF(AND(YEAR(MarSun1+32)=Kalenderår,MONTH(MarSun1+32)=3),MarSun1+32,\"\"))","v":"2020-03-26"},{"$f":"IF(DAY(MarSun1)=1,IF(AND(YEAR(MarSun1+26)=Kalenderår,MONTH(MarSun1+26)=3),MarSun1+26,\"\"),IF(AND(YEAR(MarSun1+33)=Kalenderår,MONTH(MarSun1+33)=3),MarSun1+33,\"\"))","v":"2020-03-27"},{"$f":"IF(DAY(MarSun1)=1,IF(AND(YEAR(MarSun1+27)=Kalenderår,MONTH(MarSun1+27)=3),MarSun1+27,\"\"),IF(AND(YEAR(MarSun1+34)=Kalenderår,MONTH(MarSun1+34)=3),MarSun1+34,\"\"))","v":"2020-03-28"},{"$f":"IF(DAY(MarSun1)=1,IF(AND(YEAR(MarSun1+28)=Kalenderår,MONTH(MarSun1+28)=3),MarSun1+28,\"\"),IF(AND(YEAR(MarSun1+35)=Kalenderår,MONTH(MarSun1+35)=3),MarSun1+35,\"\"))","v":"2020-03-29"},null,{"$f":"IF(DAY(AprSøn1)=1,IF(AND(YEAR(AprSøn1+22)=Kalenderår,MONTH(AprSøn1+22)=4),AprSøn1+22,\"\"),IF(AND(YEAR(AprSøn1+29)=Kalenderår,MONTH(AprSøn1+29)=4),AprSøn1+29,\"\"))","v":"2020-04-27"},{"$f":"IF(DAY(AprSøn1)=1,IF(AND(YEAR(AprSøn1+23)=Kalenderår,MONTH(AprSøn1+23)=4),AprSøn1+23,\"\"),IF(AND(YEAR(AprSøn1+30)=Kalenderår,MONTH(AprSøn1+30)=4),AprSøn1+30,\"\"))","v":"2020-04-28"},{"$f":"IF(DAY(AprSøn1)=1,IF(AND(YEAR(AprSøn1+24)=Kalenderår,MONTH(AprSøn1+24)=4),AprSøn1+24,\"\"),IF(AND(YEAR(AprSøn1+31)=Kalenderår,MONTH(AprSøn1+31)=4),AprSøn1+31,\"\"))","v":"2020-04-29"},{"$f":"IF(DAY(AprSøn1)=1,IF(AND(YEAR(AprSøn1+25)=Kalenderår,MONTH(AprSøn1+25)=4),AprSøn1+25,\"\"),IF(AND(YEAR(AprSøn1+32)=Kalenderår,MONTH(AprSøn1+32)=4),AprSøn1+32,\"\"))","v":"2020-04-30"},{"$f":"IF(DAY(AprSøn1)=1,IF(AND(YEAR(AprSøn1+26)=Kalenderår,MONTH(AprSøn1+26)=4),AprSøn1+26,\"\"),IF(AND(YEAR(AprSøn1+33)=Kalenderår,MONTH(AprSøn1+33)=4),AprSøn1+33,\"\"))","v":""},{"$f":"IF(DAY(AprSøn1)=1,IF(AND(YEAR(AprSøn1+27)=Kalenderår,MONTH(AprSøn1+27)=4),AprSøn1+27,\"\"),IF(AND(YEAR(AprSøn1+34)=Kalenderår,MONTH(AprSøn1+34)=4),AprSøn1+34,\"\"))","v":""},{"$f":"IF(DAY(AprSøn1)=1,IF(AND(YEAR(AprSøn1+28)=Kalenderår,MONTH(AprSøn1+28)=4),AprSøn1+28,\"\"),IF(AND(YEAR(AprSøn1+35)=Kalenderår,MONTH(AprSøn1+35)=4),AprSøn1+35,\"\"))","v":""}]
[null,null,{"$f":"IF(DAY(MarSun1)=1,IF(AND(YEAR(MarSun1+29)=Kalenderår,MONTH(MarSun1+29)=3),MarSun1+29,\"\"),IF(AND(YEAR(MarSun1+36)=Kalenderår,MONTH(MarSun1+36)=3),MarSun1+36,\"\"))","v":"2020-03-30"},{"$f":"IF(DAY(MarSun1)=1,IF(AND(YEAR(MarSun1+30)=Kalenderår,MONTH(MarSun1+30)=3),MarSun1+30,\"\"),IF(AND(YEAR(MarSun1+37)=Kalenderår,MONTH(MarSun1+37)=3),MarSun1+37,\"\"))","v":"2020-03-31"},{"$f":"IF(DAY(MarSun1)=1,IF(AND(YEAR(MarSun1+31)=Kalenderår,MONTH(MarSun1+31)=3),MarSun1+31,\"\"),IF(AND(YEAR(MarSun1+38)=Kalenderår,MONTH(MarSun1+38)=3),MarSun1+38,\"\"))","v":""},{"$f":"IF(DAY(MarSun1)=1,IF(AND(YEAR(MarSun1+32)=Kalenderår,MONTH(MarSun1+32)=3),MarSun1+32,\"\"),IF(AND(YEAR(MarSun1+39)=Kalenderår,MONTH(MarSun1+39)=3),MarSun1+39,\"\"))","v":""},{"$f":"IF(DAY(MarSun1)=1,IF(AND(YEAR(MarSun1+33)=Kalenderår,MONTH(MarSun1+33)=3),MarSun1+33,\"\"),IF(AND(YEAR(MarSun1+40)=Kalenderår,MONTH(MarSun1+40)=3),MarSun1+40,\"\"))","v":""},{"$f":"IF(DAY(MarSun1)=1,IF(AND(YEAR(MarSun1+34)=Kalenderår,MONTH(MarSun1+34)=3),MarSun1+34,\"\"),IF(AND(YEAR(MarSun1+41)=Kalenderår,MONTH(MarSun1+41)=3),MarSun1+41,\"\"))","v":""},{"$f":"IF(DAY(MarSun1)=1,IF(AND(YEAR(MarSun1+35)=Kalenderår,MONTH(MarSun1+35)=3),MarSun1+35,\"\"),IF(AND(YEAR(MarSun1+42)=Kalenderår,MONTH(MarSun1+42)=3),MarSun1+42,\"\"))","v":""},null,{"$f":"IF(DAY(AprSøn1)=1,IF(AND(YEAR(AprSøn1+29)=Kalenderår,MONTH(AprSøn1+29)=4),AprSøn1+29,\"\"),IF(AND(YEAR(AprSøn1+36)=Kalenderår,MONTH(AprSøn1+36)=4),AprSøn1+36,\"\"))","v":""},{"$f":"IF(DAY(AprSøn1)=1,IF(AND(YEAR(AprSøn1+30)=Kalenderår,MONTH(AprSøn1+30)=4),AprSøn1+30,\"\"),IF(AND(YEAR(AprSøn1+37)=Kalenderår,MONTH(AprSøn1+37)=4),AprSøn1+37,\"\"))","v":""},{"$f":"IF(DAY(AprSøn1)=1,IF(AND(YEAR(AprSøn1+31)=Kalenderår,MONTH(AprSøn1+31)=4),AprSøn1+31,\"\"),IF(AND(YEAR(AprSøn1+38)=Kalenderår,MONTH(AprSøn1+38)=4),AprSøn1+38,\"\"))","v":""},{"$f":"IF(DAY(AprSøn1)=1,IF(AND(YEAR(AprSøn1+32)=Kalenderår,MONTH(AprSøn1+32)=4),AprSøn1+32,\"\"),IF(AND(YEAR(AprSøn1+39)=Kalenderår,MONTH(AprSøn1+39)=4),AprSøn1+39,\"\"))","v":""},{"$f":"IF(DAY(AprSøn1)=1,IF(AND(YEAR(AprSøn1+33)=Kalenderår,MONTH(AprSøn1+33)=4),AprSøn1+33,\"\"),IF(AND(YEAR(AprSøn1+40)=Kalenderår,MONTH(AprSøn1+40)=4),AprSøn1+40,\"\"))","v":""},{"$f":"IF(DAY(AprSøn1)=1,IF(AND(YEAR(AprSøn1+34)=Kalenderår,MONTH(AprSøn1+34)=4),AprSøn1+34,\"\"),IF(AND(YEAR(AprSøn1+41)=Kalenderår,MONTH(AprSøn1+41)=4),AprSøn1+41,\"\"))","v":""},{"$f":"IF(DAY(AprSøn1)=1,IF(AND(YEAR(AprSøn1+35)=Kalenderår,MONTH(AprSøn1+35)=4),AprSøn1+35,\"\"),IF(AND(YEAR(AprSøn1+42)=Kalenderår,MONTH(AprSøn1+42)=4),AprSøn1+42,\"\"))","v":""}]
[]
["Maj-mærkat er i celle C21 og juni i celle K21",null,"MAJ",{"$nulls":7},"JUNI"]
["Maj-kalendertabel findes i cellerne C22 til I28 og juni-kalendertabel i cellerne K22 til Q28. Den næste vejledning er i celle A30.",null,"MAN","TIR","ONS","TOR","FRE","LØR","SØN",null,"MAN","TIR","ONS","TOR","FRE","LØR","SØN"]
[null,null,{"$f":"IF(DAY(MaySun1)=1,\"\",IF(AND(YEAR(MaySun1+1)=Kalenderår,MONTH(MaySun1+1)=5),MaySun1+1,\"\"))","v":""},{"$f":"IF(DAY(MaySun1)=1,\"\",IF(AND(YEAR(MaySun1+2)=Kalenderår,MONTH(MaySun1+2)=5),MaySun1+2,\"\"))","v":""},{"$f":"IF(DAY(MaySun1)=1,\"\",IF(AND(YEAR(MaySun1+3)=Kalenderår,MONTH(MaySun1+3)=5),MaySun1+3,\"\"))","v":""},{"$f":"IF(DAY(MaySun1)=1,\"\",IF(AND(YEAR(MaySun1+4)=Kalenderår,MONTH(MaySun1+4)=5),MaySun1+4,\"\"))","v":""},{"$f":"IF(DAY(MaySun1)=1,\"\",IF(AND(YEAR(MaySun1+5)=Kalenderår,MONTH(MaySun1+5)=5),MaySun1+5,\"\"))","v":"2020-05-01"},{"$f":"IF(DAY(MaySun1)=1,\"\",IF(AND(YEAR(MaySun1+6)=Kalenderår,MONTH(MaySun1+6)=5),MaySun1+6,\"\"))","v":"2020-05-02"},{"$f":"IF(DAY(MaySun1)=1,IF(AND(YEAR(MaySun1)=Kalenderår,MONTH(MaySun1)=5),MaySun1,\"\"),IF(AND(YEAR(MaySun1+7)=Kalenderår,MONTH(MaySun1+7)=5),MaySun1+7,\"\"))","v":"2020-05-03"},null,{"$f":"IF(DAY(JunSun1)=1,\"\",IF(AND(YEAR(JunSun1+1)=Kalenderår,MONTH(JunSun1+1)=6),JunSun1+1,\"\"))","v":"2020-06-01"},{"$f":"IF(DAY(JunSun1)=1,\"\",IF(AND(YEAR(JunSun1+2)=Kalenderår,MONTH(JunSun1+2)=6),JunSun1+2,\"\"))","v":"2020-06-02"},{"$f":"IF(DAY(JunSun1)=1,\"\",IF(AND(YEAR(JunSun1+3)=Kalenderår,MONTH(JunSun1+3)=6),JunSun1+3,\"\"))","v":"2020-06-03"},{"$f":"IF(DAY(JunSun1)=1,\"\",IF(AND(YEAR(JunSun1+4)=Kalenderår,MONTH(JunSun1+4)=6),JunSun1+4,\"\"))","v":"2020-06-04"},{"$f":"IF(DAY(JunSun1)=1,\"\",IF(AND(YEAR(JunSun1+5)=Kalenderår,MONTH(JunSun1+5)=6),JunSun1+5,\"\"))","v":"2020-06-05"},{"$f":"IF(DAY(JunSun1)=1,\"\",IF(AND(YEAR(JunSun1+6)=Kalenderår,MONTH(JunSun1+6)=6),JunSun1+6,\"\"))","v":"2020-06-06"},{"$f":"IF(DAY(JunSun1)=1,IF(AND(YEAR(JunSun1)=Kalenderår,MONTH(JunSun1)=6),JunSun1,\"\"),IF(AND(YEAR(JunSun1+7)=Kalenderår,MONTH(JunSun1+7)=6),JunSun1+7,\"\"))","v":"2020-06-07"}]
[null,null,{"$f":"IF(DAY(MaySun1)=1,IF(AND(YEAR(MaySun1+1)=Kalenderår,MONTH(MaySun1+1)=5),MaySun1+1,\"\"),IF(AND(YEAR(MaySun1+8)=Kalenderår,MONTH(MaySun1+8)=5),MaySun1+8,\"\"))","v":"2020-05-04"},{"$f":"IF(DAY(MaySun1)=1,IF(AND(YEAR(MaySun1+2)=Kalenderår,MONTH(MaySun1+2)=5),MaySun1+2,\"\"),IF(AND(YEAR(MaySun1+9)=Kalenderår,MONTH(MaySun1+9)=5),MaySun1+9,\"\"))","v":"2020-05-05"},{"$f":"IF(DAY(MaySun1)=1,IF(AND(YEAR(MaySun1+3)=Kalenderår,MONTH(MaySun1+3)=5),MaySun1+3,\"\"),IF(AND(YEAR(MaySun1+10)=Kalenderår,MONTH(MaySun1+10)=5),MaySun1+10,\"\"))","v":"2020-05-06"},{"$f":"IF(DAY(MaySun1)=1,IF(AND(YEAR(MaySun1+4)=Kalenderår,MONTH(MaySun1+4)=5),MaySun1+4,\"\"),IF(AND(YEAR(MaySun1+11)=Kalenderår,MONTH(MaySun1+11)=5),MaySun1+11,\"\"))","v":"2020-05-07"},{"$f":"IF(DAY(MaySun1)=1,IF(AND(YEAR(MaySun1+5)=Kalenderår,MONTH(MaySun1+5)=5),MaySun1+5,\"\"),IF(AND(YEAR(MaySun1+12)=Kalenderår,MONTH(MaySun1+12)=5),MaySun1+12,\"\"))","v":"2020-05-08"},{"$f":"IF(DAY(MaySun1)=1,IF(AND(YEAR(MaySun1+6)=Kalenderår,MONTH(MaySun1+6)=5),MaySun1+6,\"\"),IF(AND(YEAR(MaySun1+13)=Kalenderår,MONTH(MaySun1+13)=5),MaySun1+13,\"\"))","v":"2020-05-09"},{"$f":"IF(DAY(MaySun1)=1,IF(AND(YEAR(MaySun1+7)=Kalenderår,MONTH(MaySun1+7)=5),MaySun1+7,\"\"),IF(AND(YEAR(MaySun1+14)=Kalenderår,MONTH(MaySun1+14)=5),MaySun1+14,\"\"))","v":"2020-05-10"},null,{"$f":"IF(DAY(JunSun1)=1,IF(AND(YEAR(JunSun1+1)=Kalenderår,MONTH(JunSun1+1)=6),JunSun1+1,\"\"),IF(AND(YEAR(JunSun1+8)=Kalenderår,MONTH(JunSun1+8)=6),JunSun1+8,\"\"))","v":"2020-06-08"},{"$f":"IF(DAY(JunSun1)=1,IF(AND(YEAR(JunSun1+2)=Kalenderår,MONTH(JunSun1+2)=6),JunSun1+2,\"\"),IF(AND(YEAR(JunSun1+9)=Kalenderår,MONTH(JunSun1+9)=6),JunSun1+9,\"\"))","v":"2020-06-09"},{"$f":"IF(DAY(JunSun1)=1,IF(AND(YEAR(JunSun1+3)=Kalenderår,MONTH(JunSun1+3)=6),JunSun1+3,\"\"),IF(AND(YEAR(JunSun1+10)=Kalenderår,MONTH(JunSun1+10)=6),JunSun1+10,\"\"))","v":"2020-06-10"},{"$f":"IF(DAY(JunSun1)=1,IF(AND(YEAR(JunSun1+4)=Kalenderår,MONTH(JunSun1+4)=6),JunSun1+4,\"\"),IF(AND(YEAR(JunSun1+11)=Kalenderår,MONTH(JunSun1+11)=6),JunSun1+11,\"\"))","v":"2020-06-11"},{"$f":"IF(DAY(JunSun1)=1,IF(AND(YEAR(JunSun1+5)=Kalenderår,MONTH(JunSun1+5)=6),JunSun1+5,\"\"),IF(AND(YEAR(JunSun1+12)=Kalenderår,MONTH(JunSun1+12)=6),JunSun1+12,\"\"))","v":"2020-06-12"},{"$f":"IF(DAY(JunSun1)=1,IF(AND(YEAR(JunSun1+6)=Kalenderår,MONTH(JunSun1+6)=6),JunSun1+6,\"\"),IF(AND(YEAR(JunSun1+13)=Kalenderår,MONTH(JunSun1+13)=6),JunSun1+13,\"\"))","v":"2020-06-13"},{"$f":"IF(DAY(JunSun1)=1,IF(AND(YEAR(JunSun1+7)=Kalenderår,MONTH(JunSun1+7)=6),JunSun1+7,\"\"),IF(AND(YEAR(JunSun1+14)=Kalenderår,MONTH(JunSun1+14)=6),JunSun1+14,\"\"))","v":"2020-06-14"}]
[null,null,{"$f":"IF(DAY(MaySun1)=1,IF(AND(YEAR(MaySun1+8)=Kalenderår,MONTH(MaySun1+8)=5),MaySun1+8,\"\"),IF(AND(YEAR(MaySun1+15)=Kalenderår,MONTH(MaySun1+15)=5),MaySun1+15,\"\"))","v":"2020-05-11"},{"$f":"IF(DAY(MaySun1)=1,IF(AND(YEAR(MaySun1+9)=Kalenderår,MONTH(MaySun1+9)=5),MaySun1+9,\"\"),IF(AND(YEAR(MaySun1+16)=Kalenderår,MONTH(MaySun1+16)=5),MaySun1+16,\"\"))","v":"2020-05-12"},{"$f":"IF(DAY(MaySun1)=1,IF(AND(YEAR(MaySun1+10)=Kalenderår,MONTH(MaySun1+10)=5),MaySun1+10,\"\"),IF(AND(YEAR(MaySun1+17)=Kalenderår,MONTH(MaySun1+17)=5),MaySun1+17,\"\"))","v":"2020-05-13"},{"$f":"IF(DAY(MaySun1)=1,IF(AND(YEAR(MaySun1+11)=Kalenderår,MONTH(MaySun1+11)=5),MaySun1+11,\"\"),IF(AND(YEAR(MaySun1+18)=Kalenderår,MONTH(MaySun1+18)=5),MaySun1+18,\"\"))","v":"2020-05-14"},{"$f":"IF(DAY(MaySun1)=1,IF(AND(YEAR(MaySun1+12)=Kalenderår,MONTH(MaySun1+12)=5),MaySun1+12,\"\"),IF(AND(YEAR(MaySun1+19)=Kalenderår,MONTH(MaySun1+19)=5),MaySun1+19,\"\"))","v":"2020-05-15"},{"$f":"IF(DAY(MaySun1)=1,IF(AND(YEAR(MaySun1+13)=Kalenderår,MONTH(MaySun1+13)=5),MaySun1+13,\"\"),IF(AND(YEAR(MaySun1+20)=Kalenderår,MONTH(MaySun1+20)=5),MaySun1+20,\"\"))","v":"2020-05-16"},{"$f":"IF(DAY(MaySun1)=1,IF(AND(YEAR(MaySun1+14)=Kalenderår,MONTH(MaySun1+14)=5),MaySun1+14,\"\"),IF(AND(YEAR(MaySun1+21)=Kalenderår,MONTH(MaySun1+21)=5),MaySun1+21,\"\"))","v":"2020-05-17"},null,{"$f":"IF(DAY(JunSun1)=1,IF(AND(YEAR(JunSun1+8)=Kalenderår,MONTH(JunSun1+8)=6),JunSun1+8,\"\"),IF(AND(YEAR(JunSun1+15)=Kalenderår,MONTH(JunSun1+15)=6),JunSun1+15,\"\"))","v":"2020-06-15"},{"$f":"IF(DAY(JunSun1)=1,IF(AND(YEAR(JunSun1+9)=Kalenderår,MONTH(JunSun1+9)=6),JunSun1+9,\"\"),IF(AND(YEAR(JunSun1+16)=Kalenderår,MONTH(JunSun1+16)=6),JunSun1+16,\"\"))","v":"2020-06-16"},{"$f":"IF(DAY(JunSun1)=1,IF(AND(YEAR(JunSun1+10)=Kalenderår,MONTH(JunSun1+10)=6),JunSun1+10,\"\"),IF(AND(YEAR(JunSun1+17)=Kalenderår,MONTH(JunSun1+17)=6),JunSun1+17,\"\"))","v":"2020-06-17"},{"$f":"IF(DAY(JunSun1)=1,IF(AND(YEAR(JunSun1+11)=Kalenderår,MONTH(JunSun1+11)=6),JunSun1+11,\"\"),IF(AND(YEAR(JunSun1+18)=Kalenderår,MONTH(JunSun1+18)=6),JunSun1+18,\"\"))","v":"2020-06-18"},{"$f":"IF(DAY(JunSun1)=1,IF(AND(YEAR(JunSun1+12)=Kalenderår,MONTH(JunSun1+12)=6),JunSun1+12,\"\"),IF(AND(YEAR(JunSun1+19)=Kalenderår,MONTH(JunSun1+19)=6),JunSun1+19,\"\"))","v":"2020-06-19"},{"$f":"IF(DAY(JunSun1)=1,IF(AND(YEAR(JunSun1+13)=Kalenderår,MONTH(JunSun1+13)=6),JunSun1+13,\"\"),IF(AND(YEAR(JunSun1+20)=Kalenderår,MONTH(JunSun1+20)=6),JunSun1+20,\"\"))","v":"2020-06-20"},{"$f":"IF(DAY(JunSun1)=1,IF(AND(YEAR(JunSun1+14)=Kalenderår,MONTH(JunSun1+14)=6),JunSun1+14,\"\"),IF(AND(YEAR(JunSun1+21)=Kalenderår,MONTH(JunSun1+21)=6),JunSun1+21,\"\"))","v":"2020-06-21"}]
[null,null,{"$f":"IF(DAY(MaySun1)=1,IF(AND(YEAR(MaySun1+15)=Kalenderår,MONTH(MaySun1+15)=5),MaySun1+15,\"\"),IF(AND(YEAR(MaySun1+22)=Kalenderår,MONTH(MaySun1+22)=5),MaySun1+22,\"\"))","v":"2020-05-18"},{"$f":"IF(DAY(MaySun1)=1,IF(AND(YEAR(MaySun1+16)=Kalenderår,MONTH(MaySun1+16)=5),MaySun1+16,\"\"),IF(AND(YEAR(MaySun1+23)=Kalenderår,MONTH(MaySun1+23)=5),MaySun1+23,\"\"))","v":"2020-05-19"},{"$f":"IF(DAY(MaySun1)=1,IF(AND(YEAR(MaySun1+17)=Kalenderår,MONTH(MaySun1+17)=5),MaySun1+17,\"\"),IF(AND(YEAR(MaySun1+24)=Kalenderår,MONTH(MaySun1+24)=5),MaySun1+24,\"\"))","v":"2020-05-20"},{"$f":"IF(DAY(MaySun1)=1,IF(AND(YEAR(MaySun1+18)=Kalenderår,MONTH(MaySun1+18)=5),MaySun1+18,\"\"),IF(AND(YEAR(MaySun1+25)=Kalenderår,MONTH(MaySun1+25)=5),MaySun1+25,\"\"))","v":"2020-05-21"},{"$f":"IF(DAY(MaySun1)=1,IF(AND(YEAR(MaySun1+19)=Kalenderår,MONTH(MaySun1+19)=5),MaySun1+19,\"\"),IF(AND(YEAR(MaySun1+26)=Kalenderår,MONTH(MaySun1+26)=5),MaySun1+26,\"\"))","v":"2020-05-22"},{"$f":"IF(DAY(MaySun1)=1,IF(AND(YEAR(MaySun1+20)=Kalenderår,MONTH(MaySun1+20)=5),MaySun1+20,\"\"),IF(AND(YEAR(MaySun1+27)=Kalenderår,MONTH(MaySun1+27)=5),MaySun1+27,\"\"))","v":"2020-05-23"},{"$f":"IF(DAY(MaySun1)=1,IF(AND(YEAR(MaySun1+21)=Kalenderår,MONTH(MaySun1+21)=5),MaySun1+21,\"\"),IF(AND(YEAR(MaySun1+28)=Kalenderår,MONTH(MaySun1+28)=5),MaySun1+28,\"\"))","v":"2020-05-24"},null,{"$f":"IF(DAY(JunSun1)=1,IF(AND(YEAR(JunSun1+15)=Kalenderår,MONTH(JunSun1+15)=6),JunSun1+15,\"\"),IF(AND(YEAR(JunSun1+22)=Kalenderår,MONTH(JunSun1+22)=6),JunSun1+22,\"\"))","v":"2020-06-22"},{"$f":"IF(DAY(JunSun1)=1,IF(AND(YEAR(JunSun1+16)=Kalenderår,MONTH(JunSun1+16)=6),JunSun1+16,\"\"),IF(AND(YEAR(JunSun1+23)=Kalenderår,MONTH(JunSun1+23)=6),JunSun1+23,\"\"))","v":"2020-06-23"},{"$f":"IF(DAY(JunSun1)=1,IF(AND(YEAR(JunSun1+17)=Kalenderår,MONTH(JunSun1+17)=6),JunSun1+17,\"\"),IF(AND(YEAR(JunSun1+24)=Kalenderår,MONTH(JunSun1+24)=6),JunSun1+24,\"\"))","v":"2020-06-24"},{"$f":"IF(DAY(JunSun1)=1,IF(AND(YEAR(JunSun1+18)=Kalenderår,MONTH(JunSun1+18)=6),JunSun1+18,\"\"),IF(AND(YEAR(JunSun1+25)=Kalenderår,MONTH(JunSun1+25)=6),JunSun1+25,\"\"))","v":"2020-06-25"},{"$f":"IF(DAY(JunSun1)=1,IF(AND(YEAR(JunSun1+19)=Kalenderår,MONTH(JunSun1+19)=6),JunSun1+19,\"\"),IF(AND(YEAR(JunSun1+26)=Kalenderår,MONTH(JunSun1+26)=6),JunSun1+26,\"\"))","v":"2020-06-26"},{"$f":"IF(DAY(JunSun1)=1,IF(AND(YEAR(JunSun1+20)=Kalenderår,MONTH(JunSun1+20)=6),JunSun1+20,\"\"),IF(AND(YEAR(JunSun1+27)=Kalenderår,MONTH(JunSun1+27)=6),JunSun1+27,\"\"))","v":"2020-06-27"},{"$f":"IF(DAY(JunSun1)=1,IF(AND(YEAR(JunSun1+21)=Kalenderår,MONTH(JunSun1+21)=6),JunSun1+21,\"\"),IF(AND(YEAR(JunSun1+28)=Kalenderår,MONTH(JunSun1+28)=6),JunSun1+28,\"\"))","v":"2020-06-28"}]
[null,null,{"$f":"IF(DAY(MaySun1)=1,IF(AND(YEAR(MaySun1+22)=Kalenderår,MONTH(MaySun1+22)=5),MaySun1+22,\"\"),IF(AND(YEAR(MaySun1+29)=Kalenderår,MONTH(MaySun1+29)=5),MaySun1+29,\"\"))","v":"2020-05-25"},{"$f":"IF(DAY(MaySun1)=1,IF(AND(YEAR(MaySun1+23)=Kalenderår,MONTH(MaySun1+23)=5),MaySun1+23,\"\"),IF(AND(YEAR(MaySun1+30)=Kalenderår,MONTH(MaySun1+30)=5),MaySun1+30,\"\"))","v":"2020-05-26"},{"$f":"IF(DAY(MaySun1)=1,IF(AND(YEAR(MaySun1+24)=Kalenderår,MONTH(MaySun1+24)=5),MaySun1+24,\"\"),IF(AND(YEAR(MaySun1+31)=Kalenderår,MONTH(MaySun1+31)=5),MaySun1+31,\"\"))","v":"2020-05-27"},{"$f":"IF(DAY(MaySun1)=1,IF(AND(YEAR(MaySun1+25)=Kalenderår,MONTH(MaySun1+25)=5),MaySun1+25,\"\"),IF(AND(YEAR(MaySun1+32)=Kalenderår,MONTH(MaySun1+32)=5),MaySun1+32,\"\"))","v":"2020-05-28"},{"$f":"IF(DAY(MaySun1)=1,IF(AND(YEAR(MaySun1+26)=Kalenderår,MONTH(MaySun1+26)=5),MaySun1+26,\"\"),IF(AND(YEAR(MaySun1+33)=Kalenderår,MONTH(MaySun1+33)=5),MaySun1+33,\"\"))","v":"2020-05-29"},{"$f":"IF(DAY(MaySun1)=1,IF(AND(YEAR(MaySun1+27)=Kalenderår,MONTH(MaySun1+27)=5),MaySun1+27,\"\"),IF(AND(YEAR(MaySun1+34)=Kalenderår,MONTH(MaySun1+34)=5),MaySun1+34,\"\"))","v":"2020-05-30"},{"$f":"IF(DAY(MaySun1)=1,IF(AND(YEAR(MaySun1+28)=Kalenderår,MONTH(MaySun1+28)=5),MaySun1+28,\"\"),IF(AND(YEAR(MaySun1+35)=Kalenderår,MONTH(MaySun1+35)=5),MaySun1+35,\"\"))","v":"2020-05-31"},null,{"$f":"IF(DAY(JunSun1)=1,IF(AND(YEAR(JunSun1+22)=Kalenderår,MONTH(JunSun1+22)=6),JunSun1+22,\"\"),IF(AND(YEAR(JunSun1+29)=Kalenderår,MONTH(JunSun1+29)=6),JunSun1+29,\"\"))","v":"2020-06-29"},{"$f":"IF(DAY(JunSun1)=1,IF(AND(YEAR(JunSun1+23)=Kalenderår,MONTH(JunSun1+23)=6),JunSun1+23,\"\"),IF(AND(YEAR(JunSun1+30)=Kalenderår,MONTH(JunSun1+30)=6),JunSun1+30,\"\"))","v":"2020-06-30"},{"$f":"IF(DAY(JunSun1)=1,IF(AND(YEAR(JunSun1+24)=Kalenderår,MONTH(JunSun1+24)=6),JunSun1+24,\"\"),IF(AND(YEAR(JunSun1+31)=Kalenderår,MONTH(JunSun1+31)=6),JunSun1+31,\"\"))","v":""},{"$f":"IF(DAY(JunSun1)=1,IF(AND(YEAR(JunSun1+25)=Kalenderår,MONTH(JunSun1+25)=6),JunSun1+25,\"\"),IF(AND(YEAR(JunSun1+32)=Kalenderår,MONTH(JunSun1+32)=6),JunSun1+32,\"\"))","v":""},{"$f":"IF(DAY(JunSun1)=1,IF(AND(YEAR(JunSun1+26)=Kalenderår,MONTH(JunSun1+26)=6),JunSun1+26,\"\"),IF(AND(YEAR(JunSun1+33)=Kalenderår,MONTH(JunSun1+33)=6),JunSun1+33,\"\"))","v":""},{"$f":"IF(DAY(JunSun1)=1,IF(AND(YEAR(JunSun1+27)=Kalenderår,MONTH(JunSun1+27)=6),JunSun1+27,\"\"),IF(AND(YEAR(JunSun1+34)=Kalenderår,MONTH(JunSun1+34)=6),JunSun1+34,\"\"))","v":""},{"$f":"IF(DAY(JunSun1)=1,IF(AND(YEAR(JunSun1+28)=Kalenderår,MONTH(JunSun1+28)=6),JunSun1+28,\"\"),IF(AND(YEAR(JunSun1+35)=Kalenderår,MONTH(JunSun1+35)=6),JunSun1+35,\"\"))","v":""}]
[null,null,{"$f":"IF(DAY(MaySun1)=1,IF(AND(YEAR(MaySun1+29)=Kalenderår,MONTH(MaySun1+29)=5),MaySun1+29,\"\"),IF(AND(YEAR(MaySun1+36)=Kalenderår,MONTH(MaySun1+36)=5),MaySun1+36,\"\"))","v":""},{"$f":"IF(DAY(MaySun1)=1,IF(AND(YEAR(MaySun1+30)=Kalenderår,MONTH(MaySun1+30)=5),MaySun1+30,\"\"),IF(AND(YEAR(MaySun1+37)=Kalenderår,MONTH(MaySun1+37)=5),MaySun1+37,\"\"))","v":""},{"$f":"IF(DAY(MaySun1)=1,IF(AND(YEAR(MaySun1+31)=Kalenderår,MONTH(MaySun1+31)=5),MaySun1+31,\"\"),IF(AND(YEAR(MaySun1+38)=Kalenderår,MONTH(MaySun1+38)=5),MaySun1+38,\"\"))","v":""},{"$f":"IF(DAY(MaySun1)=1,IF(AND(YEAR(MaySun1+32)=Kalenderår,MONTH(MaySun1+32)=5),MaySun1+32,\"\"),IF(AND(YEAR(MaySun1+39)=Kalenderår,MONTH(MaySun1+39)=5),MaySun1+39,\"\"))","v":""},{"$f":"IF(DAY(MaySun1)=1,IF(AND(YEAR(MaySun1+33)=Kalenderår,MONTH(MaySun1+33)=5),MaySun1+33,\"\"),IF(AND(YEAR(MaySun1+40)=Kalenderår,MONTH(MaySun1+40)=5),MaySun1+40,\"\"))","v":""},{"$f":"IF(DAY(MaySun1)=1,IF(AND(YEAR(MaySun1+34)=Kalenderår,MONTH(MaySun1+34)=5),MaySun1+34,\"\"),IF(AND(YEAR(MaySun1+41)=Kalenderår,MONTH(MaySun1+41)=5),MaySun1+41,\"\"))","v":""},{"$f":"IF(DAY(MaySun1)=1,IF(AND(YEAR(MaySun1+35)=Kalenderår,MONTH(MaySun1+35)=5),MaySun1+35,\"\"),IF(AND(YEAR(MaySun1+42)=Kalenderår,MONTH(MaySun1+42)=5),MaySun1+42,\"\"))","v":""},null,{"$f":"IF(DAY(JunSun1)=1,IF(AND(YEAR(JunSun1+29)=Kalenderår,MONTH(JunSun1+29)=6),JunSun1+29,\"\"),IF(AND(YEAR(JunSun1+36)=Kalenderår,MONTH(JunSun1+36)=6),JunSun1+36,\"\"))","v":""},{"$f":"IF(DAY(JunSun1)=1,IF(AND(YEAR(JunSun1+30)=Kalenderår,MONTH(JunSun1+30)=6),JunSun1+30,\"\"),IF(AND(YEAR(JunSun1+37)=Kalenderår,MONTH(JunSun1+37)=6),JunSun1+37,\"\"))","v":""},{"$f":"IF(DAY(JunSun1)=1,IF(AND(YEAR(JunSun1+31)=Kalenderår,MONTH(JunSun1+31)=6),JunSun1+31,\"\"),IF(AND(YEAR(JunSun1+38)=Kalenderår,MONTH(JunSun1+38)=6),JunSun1+38,\"\"))","v":""},{"$f":"IF(DAY(JunSun1)=1,IF(AND(YEAR(JunSun1+32)=Kalenderår,MONTH(JunSun1+32)=6),JunSun1+32,\"\"),IF(AND(YEAR(JunSun1+39)=Kalenderår,MONTH(JunSun1+39)=6),JunSun1+39,\"\"))","v":""},{"$f":"IF(DAY(JunSun1)=1,IF(AND(YEAR(JunSun1+33)=Kalenderår,MONTH(JunSun1+33)=6),JunSun1+33,\"\"),IF(AND(YEAR(JunSun1+40)=Kalenderår,MONTH(JunSun1+40)=6),JunSun1+40,\"\"))","v":""},{"$f":"IF(DAY(JunSun1)=1,IF(AND(YEAR(JunSun1+34)=Kalenderår,MONTH(JunSun1+34)=6),JunSun1+34,\"\"),IF(AND(YEAR(JunSun1+41)=Kalenderår,MONTH(JunSun1+41)=6),JunSun1+41,\"\"))","v":""},{"$f":"IF(DAY(JunSun1)=1,IF(AND(YEAR(JunSun1+35)=Kalenderår,MONTH(JunSun1+35)=6),JunSun1+35,\"\"),IF(AND(YEAR(JunSun1+42)=Kalenderår,MONTH(JunSun1+42)=6),JunSun1+42,\"\"))","v":""}]
[]
["Juli-mærkat er i celle C30 og august i celle K30",null,"JULI",{"$nulls":7},"AUGUST"]
["Juli-kalendertabel findes i cellerne C31 til I37 og august-kalendertabel i cellerne K31 til Q37. Den næste vejledning er i celle A39.",null,"MAN","TIR","ONS","TOR","FRE","LØR","SØN",null,"MAN","TIR","ONS","TOR","FRE","LØR","SØN"]
[null,null,{"$f":"IF(DAY(JulSun1)=1,\"\",IF(AND(YEAR(JulSun1+1)=Kalenderår,MONTH(JulSun1+1)=7),JulSun1+1,\"\"))","v":""},{"$f":"IF(DAY(JulSun1)=1,\"\",IF(AND(YEAR(JulSun1+2)=Kalenderår,MONTH(JulSun1+2)=7),JulSun1+2,\"\"))","v":""},{"$f":"IF(DAY(JulSun1)=1,\"\",IF(AND(YEAR(JulSun1+3)=Kalenderår,MONTH(JulSun1+3)=7),JulSun1+3,\"\"))","v":"2020-07-01"},{"$f":"IF(DAY(JulSun1)=1,\"\",IF(AND(YEAR(JulSun1+4)=Kalenderår,MONTH(JulSun1+4)=7),JulSun1+4,\"\"))","v":"2020-07-02"},{"$f":"IF(DAY(JulSun1)=1,\"\",IF(AND(YEAR(JulSun1+5)=Kalenderår,MONTH(JulSun1+5)=7),JulSun1+5,\"\"))","v":"2020-07-03"},{"$f":"IF(DAY(JulSun1)=1,\"\",IF(AND(YEAR(JulSun1+6)=Kalenderår,MONTH(JulSun1+6)=7),JulSun1+6,\"\"))","v":"2020-07-04"},{"$f":"IF(DAY(JulSun1)=1,IF(AND(YEAR(JulSun1)=Kalenderår,MONTH(JulSun1)=7),JulSun1,\"\"),IF(AND(YEAR(JulSun1+7)=Kalenderår,MONTH(JulSun1+7)=7),JulSun1+7,\"\"))","v":"2020-07-05"},null,{"$f":"IF(DAY(AugSøn1)=1,\"\",IF(AND(YEAR(AugSøn1+1)=Kalenderår,MONTH(AugSøn1+1)=8),AugSøn1+1,\"\"))","v":""},{"$f":"IF(DAY(AugSøn1)=1,\"\",IF(AND(YEAR(AugSøn1+2)=Kalenderår,MONTH(AugSøn1+2)=8),AugSøn1+2,\"\"))","v":""},{"$f":"IF(DAY(AugSøn1)=1,\"\",IF(AND(YEAR(AugSøn1+3)=Kalenderår,MONTH(AugSøn1+3)=8),AugSøn1+3,\"\"))","v":""},{"$f":"IF(DAY(AugSøn1)=1,\"\",IF(AND(YEAR(AugSøn1+4)=Kalenderår,MONTH(AugSøn1+4)=8),AugSøn1+4,\"\"))","v":""},{"$f":"IF(DAY(AugSøn1)=1,\"\",IF(AND(YEAR(AugSøn1+5)=Kalenderår,MONTH(AugSøn1+5)=8),AugSøn1+5,\"\"))","v":""},{"$f":"IF(DAY(AugSøn1)=1,\"\",IF(AND(YEAR(AugSøn1+6)=Kalenderår,MONTH(AugSøn1+6)=8),AugSøn1+6,\"\"))","v":"2020-08-01"},{"$f":"IF(DAY(AugSøn1)=1,IF(AND(YEAR(AugSøn1)=Kalenderår,MONTH(AugSøn1)=8),AugSøn1,\"\"),IF(AND(YEAR(AugSøn1+7)=Kalenderår,MONTH(AugSøn1+7)=8),AugSøn1+7,\"\"))","v":"2020-08-02"}]
[null,null,{"$f":"IF(DAY(JulSun1)=1,IF(AND(YEAR(JulSun1+1)=Kalenderår,MONTH(JulSun1+1)=7),JulSun1+1,\"\"),IF(AND(YEAR(JulSun1+8)=Kalenderår,MONTH(JulSun1+8)=7),JulSun1+8,\"\"))","v":"2020-07-06"},{"$f":"IF(DAY(JulSun1)=1,IF(AND(YEAR(JulSun1+2)=Kalenderår,MONTH(JulSun1+2)=7),JulSun1+2,\"\"),IF(AND(YEAR(JulSun1+9)=Kalenderår,MONTH(JulSun1+9)=7),JulSun1+9,\"\"))","v":"2020-07-07"},{"$f":"IF(DAY(JulSun1)=1,IF(AND(YEAR(JulSun1+3)=Kalenderår,MONTH(JulSun1+3)=7),JulSun1+3,\"\"),IF(AND(YEAR(JulSun1+10)=Kalenderår,MONTH(JulSun1+10)=7),JulSun1+10,\"\"))","v":"2020-07-08"},{"$f":"IF(DAY(JulSun1)=1,IF(AND(YEAR(JulSun1+4)=Kalenderår,MONTH(JulSun1+4)=7),JulSun1+4,\"\"),IF(AND(YEAR(JulSun1+11)=Kalenderår,MONTH(JulSun1+11)=7),JulSun1+11,\"\"))","v":"2020-07-09"},{"$f":"IF(DAY(JulSun1)=1,IF(AND(YEAR(JulSun1+5)=Kalenderår,MONTH(JulSun1+5)=7),JulSun1+5,\"\"),IF(AND(YEAR(JulSun1+12)=Kalenderår,MONTH(JulSun1+12)=7),JulSun1+12,\"\"))","v":"2020-07-10"},{"$f":"IF(DAY(JulSun1)=1,IF(AND(YEAR(JulSun1+6)=Kalenderår,MONTH(JulSun1+6)=7),JulSun1+6,\"\"),IF(AND(YEAR(JulSun1+13)=Kalenderår,MONTH(JulSun1+13)=7),JulSun1+13,\"\"))","v":"2020-07-11"},{"$f":"IF(DAY(JulSun1)=1,IF(AND(YEAR(JulSun1+7)=Kalenderår,MONTH(JulSun1+7)=7),JulSun1+7,\"\"),IF(AND(YEAR(JulSun1+14)=Kalenderår,MONTH(JulSun1+14)=7),JulSun1+14,\"\"))","v":"2020-07-12"},null,{"$f":"IF(DAY(AugSøn1)=1,IF(AND(YEAR(AugSøn1+1)=Kalenderår,MONTH(AugSøn1+1)=8),AugSøn1+1,\"\"),IF(AND(YEAR(AugSøn1+8)=Kalenderår,MONTH(AugSøn1+8)=8),AugSøn1+8,\"\"))","v":"2020-08-03"},{"$f":"IF(DAY(AugSøn1)=1,IF(AND(YEAR(AugSøn1+2)=Kalenderår,MONTH(AugSøn1+2)=8),AugSøn1+2,\"\"),IF(AND(YEAR(AugSøn1+9)=Kalenderår,MONTH(AugSøn1+9)=8),AugSøn1+9,\"\"))","v":"2020-08-04"},{"$f":"IF(DAY(AugSøn1)=1,IF(AND(YEAR(AugSøn1+3)=Kalenderår,MONTH(AugSøn1+3)=8),AugSøn1+3,\"\"),IF(AND(YEAR(AugSøn1+10)=Kalenderår,MONTH(AugSøn1+10)=8),AugSøn1+10,\"\"))","v":"2020-08-05"},{"$f":"IF(DAY(AugSøn1)=1,IF(AND(YEAR(AugSøn1+4)=Kalenderår,MONTH(AugSøn1+4)=8),AugSøn1+4,\"\"),IF(AND(YEAR(AugSøn1+11)=Kalenderår,MONTH(AugSøn1+11)=8),AugSøn1+11,\"\"))","v":"2020-08-06"},{"$f":"IF(DAY(AugSøn1)=1,IF(AND(YEAR(AugSøn1+5)=Kalenderår,MONTH(AugSøn1+5)=8),AugSøn1+5,\"\"),IF(AND(YEAR(AugSøn1+12)=Kalenderår,MONTH(AugSøn1+12)=8),AugSøn1+12,\"\"))","v":"2020-08-07"},{"$f":"IF(DAY(AugSøn1)=1,IF(AND(YEAR(AugSøn1+6)=Kalenderår,MONTH(AugSøn1+6)=8),AugSøn1+6,\"\"),IF(AND(YEAR(AugSøn1+13)=Kalenderår,MONTH(AugSøn1+13)=8),AugSøn1+13,\"\"))","v":"2020-08-08"},{"$f":"IF(DAY(AugSøn1)=1,IF(AND(YEAR(AugSøn1+7)=Kalenderår,MONTH(AugSøn1+7)=8),AugSøn1+7,\"\"),IF(AND(YEAR(AugSøn1+14)=Kalenderår,MONTH(AugSøn1+14)=8),AugSøn1+14,\"\"))","v":"2020-08-09"}]
[null,null,{"$f":"IF(DAY(JulSun1)=1,IF(AND(YEAR(JulSun1+8)=Kalenderår,MONTH(JulSun1+8)=7),JulSun1+8,\"\"),IF(AND(YEAR(JulSun1+15)=Kalenderår,MONTH(JulSun1+15)=7),JulSun1+15,\"\"))","v":"2020-07-13"},{"$f":"IF(DAY(JulSun1)=1,IF(AND(YEAR(JulSun1+9)=Kalenderår,MONTH(JulSun1+9)=7),JulSun1+9,\"\"),IF(AND(YEAR(JulSun1+16)=Kalenderår,MONTH(JulSun1+16)=7),JulSun1+16,\"\"))","v":"2020-07-14"},{"$f":"IF(DAY(JulSun1)=1,IF(AND(YEAR(JulSun1+10)=Kalenderår,MONTH(JulSun1+10)=7),JulSun1+10,\"\"),IF(AND(YEAR(JulSun1+17)=Kalenderår,MONTH(JulSun1+17)=7),JulSun1+17,\"\"))","v":"2020-07-15"},{"$f":"IF(DAY(JulSun1)=1,IF(AND(YEAR(JulSun1+11)=Kalenderår,MONTH(JulSun1+11)=7),JulSun1+11,\"\"),IF(AND(YEAR(JulSun1+18)=Kalenderår,MONTH(JulSun1+18)=7),JulSun1+18,\"\"))","v":"2020-07-16"},{"$f":"IF(DAY(JulSun1)=1,IF(AND(YEAR(JulSun1+12)=Kalenderår,MONTH(JulSun1+12)=7),JulSun1+12,\"\"),IF(AND(YEAR(JulSun1+19)=Kalenderår,MONTH(JulSun1+19)=7),JulSun1+19,\"\"))","v":"2020-07-17"},{"$f":"IF(DAY(JulSun1)=1,IF(AND(YEAR(JulSun1+13)=Kalenderår,MONTH(JulSun1+13)=7),JulSun1+13,\"\"),IF(AND(YEAR(JulSun1+20)=Kalenderår,MONTH(JulSun1+20)=7),JulSun1+20,\"\"))","v":"2020-07-18"},{"$f":"IF(DAY(JulSun1)=1,IF(AND(YEAR(JulSun1+14)=Kalenderår,MONTH(JulSun1+14)=7),JulSun1+14,\"\"),IF(AND(YEAR(JulSun1+21)=Kalenderår,MONTH(JulSun1+21)=7),JulSun1+21,\"\"))","v":"2020-07-19"},null,{"$f":"IF(DAY(AugSøn1)=1,IF(AND(YEAR(AugSøn1+8)=Kalenderår,MONTH(AugSøn1+8)=8),AugSøn1+8,\"\"),IF(AND(YEAR(AugSøn1+15)=Kalenderår,MONTH(AugSøn1+15)=8),AugSøn1+15,\"\"))","v":"2020-08-10"},{"$f":"IF(DAY(AugSøn1)=1,IF(AND(YEAR(AugSøn1+9)=Kalenderår,MONTH(AugSøn1+9)=8),AugSøn1+9,\"\"),IF(AND(YEAR(AugSøn1+16)=Kalenderår,MONTH(AugSøn1+16)=8),AugSøn1+16,\"\"))","v":"2020-08-11"},{"$f":"IF(DAY(AugSøn1)=1,IF(AND(YEAR(AugSøn1+10)=Kalenderår,MONTH(AugSøn1+10)=8),AugSøn1+10,\"\"),IF(AND(YEAR(AugSøn1+17)=Kalenderår,MONTH(AugSøn1+17)=8),AugSøn1+17,\"\"))","v":"2020-08-12"},{"$f":"IF(DAY(AugSøn1)=1,IF(AND(YEAR(AugSøn1+11)=Kalenderår,MONTH(AugSøn1+11)=8),AugSøn1+11,\"\"),IF(AND(YEAR(AugSøn1+18)=Kalenderår,MONTH(AugSøn1+18)=8),AugSøn1+18,\"\"))","v":"2020-08-13"},{"$f":"IF(DAY(AugSøn1)=1,IF(AND(YEAR(AugSøn1+12)=Kalenderår,MONTH(AugSøn1+12)=8),AugSøn1+12,\"\"),IF(AND(YEAR(AugSøn1+19)=Kalenderår,MONTH(AugSøn1+19)=8),AugSøn1+19,\"\"))","v":"2020-08-14"},{"$f":"IF(DAY(AugSøn1)=1,IF(AND(YEAR(AugSøn1+13)=Kalenderår,MONTH(AugSøn1+13)=8),AugSøn1+13,\"\"),IF(AND(YEAR(AugSøn1+20)=Kalenderår,MONTH(AugSøn1+20)=8),AugSøn1+20,\"\"))","v":"2020-08-15"},{"$f":"IF(DAY(AugSøn1)=1,IF(AND(YEAR(AugSøn1+14)=Kalenderår,MONTH(AugSøn1+14)=8),AugSøn1+14,\"\"),IF(AND(YEAR(AugSøn1+21)=Kalenderår,MONTH(AugSøn1+21)=8),AugSøn1+21,\"\"))","v":"2020-08-16"}]
[null,null,{"$f":"IF(DAY(JulSun1)=1,IF(AND(YEAR(JulSun1+15)=Kalenderår,MONTH(JulSun1+15)=7),JulSun1+15,\"\"),IF(AND(YEAR(JulSun1+22)=Kalenderår,MONTH(JulSun1+22)=7),JulSun1+22,\"\"))","v":"2020-07-20"},{"$f":"IF(DAY(JulSun1)=1,IF(AND(YEAR(JulSun1+16)=Kalenderår,MONTH(JulSun1+16)=7),JulSun1+16,\"\"),IF(AND(YEAR(JulSun1+23)=Kalenderår,MONTH(JulSun1+23)=7),JulSun1+23,\"\"))","v":"2020-07-21"},{"$f":"IF(DAY(JulSun1)=1,IF(AND(YEAR(JulSun1+17)=Kalenderår,MONTH(JulSun1+17)=7),JulSun1+17,\"\"),IF(AND(YEAR(JulSun1+24)=Kalenderår,MONTH(JulSun1+24)=7),JulSun1+24,\"\"))","v":"2020-07-22"},{"$f":"IF(DAY(JulSun1)=1,IF(AND(YEAR(JulSun1+18)=Kalenderår,MONTH(JulSun1+18)=7),JulSun1+18,\"\"),IF(AND(YEAR(JulSun1+25)=Kalenderår,MONTH(JulSun1+25)=7),JulSun1+25,\"\"))","v":"2020-07-23"},{"$f":"IF(DAY(JulSun1)=1,IF(AND(YEAR(JulSun1+19)=Kalenderår,MONTH(JulSun1+19)=7),JulSun1+19,\"\"),IF(AND(YEAR(JulSun1+26)=Kalenderår,MONTH(JulSun1+26)=7),JulSun1+26,\"\"))","v":"2020-07-24"},{"$f":"IF(DAY(JulSun1)=1,IF(AND(YEAR(JulSun1+20)=Kalenderår,MONTH(JulSun1+20)=7),JulSun1+20,\"\"),IF(AND(YEAR(JulSun1+27)=Kalenderår,MONTH(JulSun1+27)=7),JulSun1+27,\"\"))","v":"2020-07-25"},{"$f":"IF(DAY(JulSun1)=1,IF(AND(YEAR(JulSun1+21)=Kalenderår,MONTH(JulSun1+21)=7),JulSun1+21,\"\"),IF(AND(YEAR(JulSun1+28)=Kalenderår,MONTH(JulSun1+28)=7),JulSun1+28,\"\"))","v":"2020-07-26"},null,{"$f":"IF(DAY(AugSøn1)=1,IF(AND(YEAR(AugSøn1+15)=Kalenderår,MONTH(AugSøn1+15)=8),AugSøn1+15,\"\"),IF(AND(YEAR(AugSøn1+22)=Kalenderår,MONTH(AugSøn1+22)=8),AugSøn1+22,\"\"))","v":"2020-08-17"},{"$f":"IF(DAY(AugSøn1)=1,IF(AND(YEAR(AugSøn1+16)=Kalenderår,MONTH(AugSøn1+16)=8),AugSøn1+16,\"\"),IF(AND(YEAR(AugSøn1+23)=Kalenderår,MONTH(AugSøn1+23)=8),AugSøn1+23,\"\"))","v":"2020-08-18"},{"$f":"IF(DAY(AugSøn1)=1,IF(AND(YEAR(AugSøn1+17)=Kalenderår,MONTH(AugSøn1+17)=8),AugSøn1+17,\"\"),IF(AND(YEAR(AugSøn1+24)=Kalenderår,MONTH(AugSøn1+24)=8),AugSøn1+24,\"\"))","v":"2020-08-19"},{"$f":"IF(DAY(AugSøn1)=1,IF(AND(YEAR(AugSøn1+18)=Kalenderår,MONTH(AugSøn1+18)=8),AugSøn1+18,\"\"),IF(AND(YEAR(AugSøn1+25)=Kalenderår,MONTH(AugSøn1+25)=8),AugSøn1+25,\"\"))","v":"2020-08-20"},{"$f":"IF(DAY(AugSøn1)=1,IF(AND(YEAR(AugSøn1+19)=Kalenderår,MONTH(AugSøn1+19)=8),AugSøn1+19,\"\"),IF(AND(YEAR(AugSøn1+26)=Kalenderår,MONTH(AugSøn1+26)=8),AugSøn1+26,\"\"))","v":"2020-08-21"},{"$f":"IF(DAY(AugSøn1)=1,IF(AND(YEAR(AugSøn1+20)=Kalenderår,MONTH(AugSøn1+20)=8),AugSøn1+20,\"\"),IF(AND(YEAR(AugSøn1+27)=Kalenderår,MONTH(AugSøn1+27)=8),AugSøn1+27,\"\"))","v":"2020-08-22"},{"$f":"IF(DAY(AugSøn1)=1,IF(AND(YEAR(AugSøn1+21)=Kalenderår,MONTH(AugSøn1+21)=8),AugSøn1+21,\"\"),IF(AND(YEAR(AugSøn1+28)=Kalenderår,MONTH(AugSøn1+28)=8),AugSøn1+28,\"\"))","v":"2020-08-23"}]
[null,null,{"$f":"IF(DAY(JulSun1)=1,IF(AND(YEAR(JulSun1+22)=Kalenderår,MONTH(JulSun1+22)=7),JulSun1+22,\"\"),IF(AND(YEAR(JulSun1+29)=Kalenderår,MONTH(JulSun1+29)=7),JulSun1+29,\"\"))","v":"2020-07-27"},{"$f":"IF(DAY(JulSun1)=1,IF(AND(YEAR(JulSun1+23)=Kalenderår,MONTH(JulSun1+23)=7),JulSun1+23,\"\"),IF(AND(YEAR(JulSun1+30)=Kalenderår,MONTH(JulSun1+30)=7),JulSun1+30,\"\"))","v":"2020-07-28"},{"$f":"IF(DAY(JulSun1)=1,IF(AND(YEAR(JulSun1+24)=Kalenderår,MONTH(JulSun1+24)=7),JulSun1+24,\"\"),IF(AND(YEAR(JulSun1+31)=Kalenderår,MONTH(JulSun1+31)=7),JulSun1+31,\"\"))","v":"2020-07-29"},{"$f":"IF(DAY(JulSun1)=1,IF(AND(YEAR(JulSun1+25)=Kalenderår,MONTH(JulSun1+25)=7),JulSun1+25,\"\"),IF(AND(YEAR(JulSun1+32)=Kalenderår,MONTH(JulSun1+32)=7),JulSun1+32,\"\"))","v":"2020-07-30"},{"$f":"IF(DAY(JulSun1)=1,IF(AND(YEAR(JulSun1+26)=Kalenderår,MONTH(JulSun1+26)=7),JulSun1+26,\"\"),IF(AND(YEAR(JulSun1+33)=Kalenderår,MONTH(JulSun1+33)=7),JulSun1+33,\"\"))","v":"2020-07-31"},{"$f":"IF(DAY(JulSun1)=1,IF(AND(YEAR(JulSun1+27)=Kalenderår,MONTH(JulSun1+27)=7),JulSun1+27,\"\"),IF(AND(YEAR(JulSun1+34)=Kalenderår,MONTH(JulSun1+34)=7),JulSun1+34,\"\"))","v":""},{"$f":"IF(DAY(JulSun1)=1,IF(AND(YEAR(JulSun1+28)=Kalenderår,MONTH(JulSun1+28)=7),JulSun1+28,\"\"),IF(AND(YEAR(JulSun1+35)=Kalenderår,MONTH(JulSun1+35)=7),JulSun1+35,\"\"))","v":""},null,{"$f":"IF(DAY(AugSøn1)=1,IF(AND(YEAR(AugSøn1+22)=Kalenderår,MONTH(AugSøn1+22)=8),AugSøn1+22,\"\"),IF(AND(YEAR(AugSøn1+29)=Kalenderår,MONTH(AugSøn1+29)=8),AugSøn1+29,\"\"))","v":"2020-08-24"},{"$f":"IF(DAY(AugSøn1)=1,IF(AND(YEAR(AugSøn1+23)=Kalenderår,MONTH(AugSøn1+23)=8),AugSøn1+23,\"\"),IF(AND(YEAR(AugSøn1+30)=Kalenderår,MONTH(AugSøn1+30)=8),AugSøn1+30,\"\"))","v":"2020-08-25"},{"$f":"IF(DAY(AugSøn1)=1,IF(AND(YEAR(AugSøn1+24)=Kalenderår,MONTH(AugSøn1+24)=8),AugSøn1+24,\"\"),IF(AND(YEAR(AugSøn1+31)=Kalenderår,MONTH(AugSøn1+31)=8),AugSøn1+31,\"\"))","v":"2020-08-26"},{"$f":"IF(DAY(AugSøn1)=1,IF(AND(YEAR(AugSøn1+25)=Kalenderår,MONTH(AugSøn1+25)=8),AugSøn1+25,\"\"),IF(AND(YEAR(AugSøn1+32)=Kalenderår,MONTH(AugSøn1+32)=8),AugSøn1+32,\"\"))","v":"2020-08-27"},{"$f":"IF(DAY(AugSøn1)=1,IF(AND(YEAR(AugSøn1+26)=Kalenderår,MONTH(AugSøn1+26)=8),AugSøn1+26,\"\"),IF(AND(YEAR(AugSøn1+33)=Kalenderår,MONTH(AugSøn1+33)=8),AugSøn1+33,\"\"))","v":"2020-08-28"},{"$f":"IF(DAY(AugSøn1)=1,IF(AND(YEAR(AugSøn1+27)=Kalenderår,MONTH(AugSøn1+27)=8),AugSøn1+27,\"\"),IF(AND(YEAR(AugSøn1+34)=Kalenderår,MONTH(AugSøn1+34)=8),AugSøn1+34,\"\"))","v":"2020-08-29"},{"$f":"IF(DAY(AugSøn1)=1,IF(AND(YEAR(AugSøn1+28)=Kalenderår,MONTH(AugSøn1+28)=8),AugSøn1+28,\"\"),IF(AND(YEAR(AugSøn1+35)=Kalenderår,MONTH(AugSøn1+35)=8),AugSøn1+35,\"\"))","v":"2020-08-30"}]
[null,null,{"$f":"IF(DAY(JulSun1)=1,IF(AND(YEAR(JulSun1+29)=Kalenderår,MONTH(JulSun1+29)=7),JulSun1+29,\"\"),IF(AND(YEAR(JulSun1+36)=Kalenderår,MONTH(JulSun1+36)=7),JulSun1+36,\"\"))","v":""},{"$f":"IF(DAY(JulSun1)=1,IF(AND(YEAR(JulSun1+30)=Kalenderår,MONTH(JulSun1+30)=7),JulSun1+30,\"\"),IF(AND(YEAR(JulSun1+37)=Kalenderår,MONTH(JulSun1+37)=7),JulSun1+37,\"\"))","v":""},{"$f":"IF(DAY(JulSun1)=1,IF(AND(YEAR(JulSun1+31)=Kalenderår,MONTH(JulSun1+31)=7),JulSun1+31,\"\"),IF(AND(YEAR(JulSun1+38)=Kalenderår,MONTH(JulSun1+38)=7),JulSun1+38,\"\"))","v":""},{"$f":"IF(DAY(JulSun1)=1,IF(AND(YEAR(JulSun1+32)=Kalenderår,MONTH(JulSun1+32)=7),JulSun1+32,\"\"),IF(AND(YEAR(JulSun1+39)=Kalenderår,MONTH(JulSun1+39)=7),JulSun1+39,\"\"))","v":""},{"$f":"IF(DAY(JulSun1)=1,IF(AND(YEAR(JulSun1+33)=Kalenderår,MONTH(JulSun1+33)=7),JulSun1+33,\"\"),IF(AND(YEAR(JulSun1+40)=Kalenderår,MONTH(JulSun1+40)=7),JulSun1+40,\"\"))","v":""},{"$f":"IF(DAY(JulSun1)=1,IF(AND(YEAR(JulSun1+34)=Kalenderår,MONTH(JulSun1+34)=7),JulSun1+34,\"\"),IF(AND(YEAR(JulSun1+41)=Kalenderår,MONTH(JulSun1+41)=7),JulSun1+41,\"\"))","v":""},{"$f":"IF(DAY(JulSun1)=1,IF(AND(YEAR(JulSun1+35)=Kalenderår,MONTH(JulSun1+35)=7),JulSun1+35,\"\"),IF(AND(YEAR(JulSun1+42)=Kalenderår,MONTH(JulSun1+42)=7),JulSun1+42,\"\"))","v":""},null,{"$f":"IF(DAY(AugSøn1)=1,IF(AND(YEAR(AugSøn1+29)=Kalenderår,MONTH(AugSøn1+29)=8),AugSøn1+29,\"\"),IF(AND(YEAR(AugSøn1+36)=Kalenderår,MONTH(AugSøn1+36)=8),AugSøn1+36,\"\"))","v":"2020-08-31"},{"$f":"IF(DAY(AugSøn1)=1,IF(AND(YEAR(AugSøn1+30)=Kalenderår,MONTH(AugSøn1+30)=8),AugSøn1+30,\"\"),IF(AND(YEAR(AugSøn1+37)=Kalenderår,MONTH(AugSøn1+37)=8),AugSøn1+37,\"\"))","v":""},{"$f":"IF(DAY(AugSøn1)=1,IF(AND(YEAR(AugSøn1+31)=Kalenderår,MONTH(AugSøn1+31)=8),AugSøn1+31,\"\"),IF(AND(YEAR(AugSøn1+38)=Kalenderår,MONTH(AugSøn1+38)=8),AugSøn1+38,\"\"))","v":""},{"$f":"IF(DAY(AugSøn1)=1,IF(AND(YEAR(AugSøn1+32)=Kalenderår,MONTH(AugSøn1+32)=8),AugSøn1+32,\"\"),IF(AND(YEAR(AugSøn1+39)=Kalenderår,MONTH(AugSøn1+39)=8),AugSøn1+39,\"\"))","v":""},{"$f":"IF(DAY(AugSøn1)=1,IF(AND(YEAR(AugSøn1+33)=Kalenderår,MONTH(AugSøn1+33)=8),AugSøn1+33,\"\"),IF(AND(YEAR(AugSøn1+40)=Kalenderår,MONTH(AugSøn1+40)=8),AugSøn1+40,\"\"))","v":""},{"$f":"IF(DAY(AugSøn1)=1,IF(AND(YEAR(AugSøn1+34)=Kalenderår,MONTH(AugSøn1+34)=8),AugSøn1+34,\"\"),IF(AND(YEAR(AugSøn1+41)=Kalenderår,MONTH(AugSøn1+41)=8),AugSøn1+41,\"\"))","v":""},{"$f":"IF(DAY(AugSøn1)=1,IF(AND(YEAR(AugSøn1+35)=Kalenderår,MONTH(AugSøn1+35)=8),AugSøn1+35,\"\"),IF(AND(YEAR(AugSøn1+42)=Kalenderår,MONTH(AugSøn1+42)=8),AugSøn1+42,\"\"))","v":""}]
[]
["September-mærkat er i celle C39 og oktober i celle K39",null,"SEPTEMBER",{"$nulls":7},"OKTOBER"]
["September-kalendertabel er i cellerne C40 til I46 og oktober-kalendertabel i cellerne K40 til Q46. Den næste vejledning er i celle A44",null,"MAN","TIR","ONS","TOR","FRE","LØR","SØN",null,"MAN","TIR","ONS","TOR","FRE","LØR","SØN"]
[null,null,{"$f":"IF(DAY(SepSøn1)=1,\"\",IF(AND(YEAR(SepSøn1+1)=Kalenderår,MONTH(SepSøn1+1)=9),SepSøn1+1,\"\"))","v":""},{"$f":"IF(DAY(SepSøn1)=1,\"\",IF(AND(YEAR(SepSøn1+2)=Kalenderår,MONTH(SepSøn1+2)=9),SepSøn1+2,\"\"))","v":"2020-09-01"},{"$f":"IF(DAY(SepSøn1)=1,\"\",IF(AND(YEAR(SepSøn1+3)=Kalenderår,MONTH(SepSøn1+3)=9),SepSøn1+3,\"\"))","v":"2020-09-02"},{"$f":"IF(DAY(SepSøn1)=1,\"\",IF(AND(YEAR(SepSøn1+4)=Kalenderår,MONTH(SepSøn1+4)=9),SepSøn1+4,\"\"))","v":"2020-09-03"},{"$f":"IF(DAY(SepSøn1)=1,\"\",IF(AND(YEAR(SepSøn1+5)=Kalenderår,MONTH(SepSøn1+5)=9),SepSøn1+5,\"\"))","v":"2020-09-04"},{"$f":"IF(DAY(SepSøn1)=1,\"\",IF(AND(YEAR(SepSøn1+6)=Kalenderår,MONTH(SepSøn1+6)=9),SepSøn1+6,\"\"))","v":"2020-09-05"},{"$f":"IF(DAY(SepSøn1)=1,IF(AND(YEAR(SepSøn1)=Kalenderår,MONTH(SepSøn1)=9),SepSøn1,\"\"),IF(AND(YEAR(SepSøn1+7)=Kalenderår,MONTH(SepSøn1+7)=9),SepSøn1+7,\"\"))","v":"2020-09-06"},null,{"$f":"IF(DAY(OctSun1)=1,\"\",IF(AND(YEAR(OctSun1+1)=Kalenderår,MONTH(OctSun1+1)=10),OctSun1+1,\"\"))","v":""},{"$f":"IF(DAY(OctSun1)=1,\"\",IF(AND(YEAR(OctSun1+2)=Kalenderår,MONTH(OctSun1+2)=10),OctSun1+2,\"\"))","v":""},{"$f":"IF(DAY(OctSun1)=1,\"\",IF(AND(YEAR(OctSun1+3)=Kalenderår,MONTH(OctSun1+3)=10),OctSun1+3,\"\"))","v":""},{"$f":"IF(DAY(OctSun1)=1,\"\",IF(AND(YEAR(OctSun1+4)=Kalenderår,MONTH(OctSun1+4)=10),OctSun1+4,\"\"))","v":"2020-10-01"},{"$f":"IF(DAY(OctSun1)=1,\"\",IF(AND(YEAR(OctSun1+5)=Kalenderår,MONTH(OctSun1+5)=10),OctSun1+5,\"\"))","v":"2020-10-02"},{"$f":"IF(DAY(OctSun1)=1,\"\",IF(AND(YEAR(OctSun1+6)=Kalenderår,MONTH(OctSun1+6)=10),OctSun1+6,\"\"))","v":"2020-10-03"},{"$f":"IF(DAY(OctSun1)=1,IF(AND(YEAR(OctSun1)=Kalenderår,MONTH(OctSun1)=10),OctSun1,\"\"),IF(AND(YEAR(OctSun1+7)=Kalenderår,MONTH(OctSun1+7)=10),OctSun1+7,\"\"))","v":"2020-10-04"}]
[null,null,{"$f":"IF(DAY(SepSøn1)=1,IF(AND(YEAR(SepSøn1+1)=Kalenderår,MONTH(SepSøn1+1)=9),SepSøn1+1,\"\"),IF(AND(YEAR(SepSøn1+8)=Kalenderår,MONTH(SepSøn1+8)=9),SepSøn1+8,\"\"))","v":"2020-09-07"},{"$f":"IF(DAY(SepSøn1)=1,IF(AND(YEAR(SepSøn1+2)=Kalenderår,MONTH(SepSøn1+2)=9),SepSøn1+2,\"\"),IF(AND(YEAR(SepSøn1+9)=Kalenderår,MONTH(SepSøn1+9)=9),SepSøn1+9,\"\"))","v":"2020-09-08"},{"$f":"IF(DAY(SepSøn1)=1,IF(AND(YEAR(SepSøn1+3)=Kalenderår,MONTH(SepSøn1+3)=9),SepSøn1+3,\"\"),IF(AND(YEAR(SepSøn1+10)=Kalenderår,MONTH(SepSøn1+10)=9),SepSøn1+10,\"\"))","v":"2020-09-09"},{"$f":"IF(DAY(SepSøn1)=1,IF(AND(YEAR(SepSøn1+4)=Kalenderår,MONTH(SepSøn1+4)=9),SepSøn1+4,\"\"),IF(AND(YEAR(SepSøn1+11)=Kalenderår,MONTH(SepSøn1+11)=9),SepSøn1+11,\"\"))","v":"2020-09-10"},{"$f":"IF(DAY(SepSøn1)=1,IF(AND(YEAR(SepSøn1+5)=Kalenderår,MONTH(SepSøn1+5)=9),SepSøn1+5,\"\"),IF(AND(YEAR(SepSøn1+12)=Kalenderår,MONTH(SepSøn1+12)=9),SepSøn1+12,\"\"))","v":"2020-09-11"},{"$f":"IF(DAY(SepSøn1)=1,IF(AND(YEAR(SepSøn1+6)=Kalenderår,MONTH(SepSøn1+6)=9),SepSøn1+6,\"\"),IF(AND(YEAR(SepSøn1+13)=Kalenderår,MONTH(SepSøn1+13)=9),SepSøn1+13,\"\"))","v":"2020-09-12"},{"$f":"IF(DAY(SepSøn1)=1,IF(AND(YEAR(SepSøn1+7)=Kalenderår,MONTH(SepSøn1+7)=9),SepSøn1+7,\"\"),IF(AND(YEAR(SepSøn1+14)=Kalenderår,MONTH(SepSøn1+14)=9),SepSøn1+14,\"\"))","v":"2020-09-13"},null,{"$f":"IF(DAY(OctSun1)=1,IF(AND(YEAR(OctSun1+1)=Kalenderår,MONTH(OctSun1+1)=10),OctSun1+1,\"\"),IF(AND(YEAR(OctSun1+8)=Kalenderår,MONTH(OctSun1+8)=10),OctSun1+8,\"\"))","v":"2020-10-05"},{"$f":"IF(DAY(OctSun1)=1,IF(AND(YEAR(OctSun1+2)=Kalenderår,MONTH(OctSun1+2)=10),OctSun1+2,\"\"),IF(AND(YEAR(OctSun1+9)=Kalenderår,MONTH(OctSun1+9)=10),OctSun1+9,\"\"))","v":"2020-10-06"},{"$f":"IF(DAY(OctSun1)=1,IF(AND(YEAR(OctSun1+3)=Kalenderår,MONTH(OctSun1+3)=10),OctSun1+3,\"\"),IF(AND(YEAR(OctSun1+10)=Kalenderår,MONTH(OctSun1+10)=10),OctSun1+10,\"\"))","v":"2020-10-07"},{"$f":"IF(DAY(OctSun1)=1,IF(AND(YEAR(OctSun1+4)=Kalenderår,MONTH(OctSun1+4)=10),OctSun1+4,\"\"),IF(AND(YEAR(OctSun1+11)=Kalenderår,MONTH(OctSun1+11)=10),OctSun1+11,\"\"))","v":"2020-10-08"},{"$f":"IF(DAY(OctSun1)=1,IF(AND(YEAR(OctSun1+5)=Kalenderår,MONTH(OctSun1+5)=10),OctSun1+5,\"\"),IF(AND(YEAR(OctSun1+12)=Kalenderår,MONTH(OctSun1+12)=10),OctSun1+12,\"\"))","v":"2020-10-09"},{"$f":"IF(DAY(OctSun1)=1,IF(AND(YEAR(OctSun1+6)=Kalenderår,MONTH(OctSun1+6)=10),OctSun1+6,\"\"),IF(AND(YEAR(OctSun1+13)=Kalenderår,MONTH(OctSun1+13)=10),OctSun1+13,\"\"))","v":"2020-10-10"},{"$f":"IF(DAY(OctSun1)=1,IF(AND(YEAR(OctSun1+7)=Kalenderår,MONTH(OctSun1+7)=10),OctSun1+7,\"\"),IF(AND(YEAR(OctSun1+14)=Kalenderår,MONTH(OctSun1+14)=10),OctSun1+14,\"\"))","v":"2020-10-11"}]
[null,null,{"$f":"IF(DAY(SepSøn1)=1,IF(AND(YEAR(SepSøn1+8)=Kalenderår,MONTH(SepSøn1+8)=9),SepSøn1+8,\"\"),IF(AND(YEAR(SepSøn1+15)=Kalenderår,MONTH(SepSøn1+15)=9),SepSøn1+15,\"\"))","v":"2020-09-14"},{"$f":"IF(DAY(SepSøn1)=1,IF(AND(YEAR(SepSøn1+9)=Kalenderår,MONTH(SepSøn1+9)=9),SepSøn1+9,\"\"),IF(AND(YEAR(SepSøn1+16)=Kalenderår,MONTH(SepSøn1+16)=9),SepSøn1+16,\"\"))","v":"2020-09-15"},{"$f":"IF(DAY(SepSøn1)=1,IF(AND(YEAR(SepSøn1+10)=Kalenderår,MONTH(SepSøn1+10)=9),SepSøn1+10,\"\"),IF(AND(YEAR(SepSøn1+17)=Kalenderår,MONTH(SepSøn1+17)=9),SepSøn1+17,\"\"))","v":"2020-09-16"},{"$f":"IF(DAY(SepSøn1)=1,IF(AND(YEAR(SepSøn1+11)=Kalenderår,MONTH(SepSøn1+11)=9),SepSøn1+11,\"\"),IF(AND(YEAR(SepSøn1+18)=Kalenderår,MONTH(SepSøn1+18)=9),SepSøn1+18,\"\"))","v":"2020-09-17"},{"$f":"IF(DAY(SepSøn1)=1,IF(AND(YEAR(SepSøn1+12)=Kalenderår,MONTH(SepSøn1+12)=9),SepSøn1+12,\"\"),IF(AND(YEAR(SepSøn1+19)=Kalenderår,MONTH(SepSøn1+19)=9),SepSøn1+19,\"\"))","v":"2020-09-18"},{"$f":"IF(DAY(SepSøn1)=1,IF(AND(YEAR(SepSøn1+13)=Kalenderår,MONTH(SepSøn1+13)=9),SepSøn1+13,\"\"),IF(AND(YEAR(SepSøn1+20)=Kalenderår,MONTH(SepSøn1+20)=9),SepSøn1+20,\"\"))","v":"2020-09-19"},{"$f":"IF(DAY(SepSøn1)=1,IF(AND(YEAR(SepSøn1+14)=Kalenderår,MONTH(SepSøn1+14)=9),SepSøn1+14,\"\"),IF(AND(YEAR(SepSøn1+21)=Kalenderår,MONTH(SepSøn1+21)=9),SepSøn1+21,\"\"))","v":"2020-09-20"},null,{"$f":"IF(DAY(OctSun1)=1,IF(AND(YEAR(OctSun1+8)=Kalenderår,MONTH(OctSun1+8)=10),OctSun1+8,\"\"),IF(AND(YEAR(OctSun1+15)=Kalenderår,MONTH(OctSun1+15)=10),OctSun1+15,\"\"))","v":"2020-10-12"},{"$f":"IF(DAY(OctSun1)=1,IF(AND(YEAR(OctSun1+9)=Kalenderår,MONTH(OctSun1+9)=10),OctSun1+9,\"\"),IF(AND(YEAR(OctSun1+16)=Kalenderår,MONTH(OctSun1+16)=10),OctSun1+16,\"\"))","v":"2020-10-13"},{"$f":"IF(DAY(OctSun1)=1,IF(AND(YEAR(OctSun1+10)=Kalenderår,MONTH(OctSun1+10)=10),OctSun1+10,\"\"),IF(AND(YEAR(OctSun1+17)=Kalenderår,MONTH(OctSun1+17)=10),OctSun1+17,\"\"))","v":"2020-10-14"},{"$f":"IF(DAY(OctSun1)=1,IF(AND(YEAR(OctSun1+11)=Kalenderår,MONTH(OctSun1+11)=10),OctSun1+11,\"\"),IF(AND(YEAR(OctSun1+18)=Kalenderår,MONTH(OctSun1+18)=10),OctSun1+18,\"\"))","v":"2020-10-15"},{"$f":"IF(DAY(OctSun1)=1,IF(AND(YEAR(OctSun1+12)=Kalenderår,MONTH(OctSun1+12)=10),OctSun1+12,\"\"),IF(AND(YEAR(OctSun1+19)=Kalenderår,MONTH(OctSun1+19)=10),OctSun1+19,\"\"))","v":"2020-10-16"},{"$f":"IF(DAY(OctSun1)=1,IF(AND(YEAR(OctSun1+13)=Kalenderår,MONTH(OctSun1+13)=10),OctSun1+13,\"\"),IF(AND(YEAR(OctSun1+20)=Kalenderår,MONTH(OctSun1+20)=10),OctSun1+20,\"\"))","v":"2020-10-17"},{"$f":"IF(DAY(OctSun1)=1,IF(AND(YEAR(OctSun1+14)=Kalenderår,MONTH(OctSun1+14)=10),OctSun1+14,\"\"),IF(AND(YEAR(OctSun1+21)=Kalenderår,MONTH(OctSun1+21)=10),OctSun1+21,\"\"))","v":"2020-10-18"}]
["Angiv Adresse i celle U44",null,{"$f":"IF(DAY(SepSøn1)=1,IF(AND(YEAR(SepSøn1+15)=Kalenderår,MONTH(SepSøn1+15)=9),SepSøn1+15,\"\"),IF(AND(YEAR(SepSøn1+22)=Kalenderår,MONTH(SepSøn1+22)=9),SepSøn1+22,\"\"))","v":"2020-09-21"},{"$f":"IF(DAY(SepSøn1)=1,IF(AND(YEAR(SepSøn1+16)=Kalenderår,MONTH(SepSøn1+16)=9),SepSøn1+16,\"\"),IF(AND(YEAR(SepSøn1+23)=Kalenderår,MONTH(SepSøn1+23)=9),SepSøn1+23,\"\"))","v":"2020-09-22"},{"$f":"IF(DAY(SepSøn1)=1,IF(AND(YEAR(SepSøn1+17)=Kalenderår,MONTH(SepSøn1+17)=9),SepSøn1+17,\"\"),IF(AND(YEAR(SepSøn1+24)=Kalenderår,MONTH(SepSøn1+24)=9),SepSøn1+24,\"\"))","v":"2020-09-23"},{"$f":"IF(DAY(SepSøn1)=1,IF(AND(YEAR(SepSøn1+18)=Kalenderår,MONTH(SepSøn1+18)=9),SepSøn1+18,\"\"),IF(AND(YEAR(SepSøn1+25)=Kalenderår,MONTH(SepSøn1+25)=9),SepSøn1+25,\"\"))","v":"2020-09-24"},{"$f":"IF(DAY(SepSøn1)=1,IF(AND(YEAR(SepSøn1+19)=Kalenderår,MONTH(SepSøn1+19)=9),SepSøn1+19,\"\"),IF(AND(YEAR(SepSøn1+26)=Kalenderår,MONTH(SepSøn1+26)=9),SepSøn1+26,\"\"))","v":"2020-09-25"},{"$f":"IF(DAY(SepSøn1)=1,IF(AND(YEAR(SepSøn1+20)=Kalenderår,MONTH(SepSøn1+20)=9),SepSøn1+20,\"\"),IF(AND(YEAR(SepSøn1+27)=Kalenderår,MONTH(SepSøn1+27)=9),SepSøn1+27,\"\"))","v":"2020-09-26"},{"$f":"IF(DAY(SepSøn1)=1,IF(AND(YEAR(SepSøn1+21)=Kalenderår,MONTH(SepSøn1+21)=9),SepSøn1+21,\"\"),IF(AND(YEAR(SepSøn1+28)=Kalenderår,MONTH(SepSøn1+28)=9),SepSøn1+28,\"\"))","v":"2020-09-27"},null,{"$f":"IF(DAY(OctSun1)=1,IF(AND(YEAR(OctSun1+15)=Kalenderår,MONTH(OctSun1+15)=10),OctSun1+15,\"\"),IF(AND(YEAR(OctSun1+22)=Kalenderår,MONTH(OctSun1+22)=10),OctSun1+22,\"\"))","v":"2020-10-19"},{"$f":"IF(DAY(OctSun1)=1,IF(AND(YEAR(OctSun1+16)=Kalenderår,MONTH(OctSun1+16)=10),OctSun1+16,\"\"),IF(AND(YEAR(OctSun1+23)=Kalenderår,MONTH(OctSun1+23)=10),OctSun1+23,\"\"))","v":"2020-10-20"},{"$f":"IF(DAY(OctSun1)=1,IF(AND(YEAR(OctSun1+17)=Kalenderår,MONTH(OctSun1+17)=10),OctSun1+17,\"\"),IF(AND(YEAR(OctSun1+24)=Kalenderår,MONTH(OctSun1+24)=10),OctSun1+24,\"\"))","v":"2020-10-21"},{"$f":"IF(DAY(OctSun1)=1,IF(AND(YEAR(OctSun1+18)=Kalenderår,MONTH(OctSun1+18)=10),OctSun1+18,\"\"),IF(AND(YEAR(OctSun1+25)=Kalenderår,MONTH(OctSun1+25)=10),OctSun1+25,\"\"))","v":"2020-10-22"},{"$f":"IF(DAY(OctSun1)=1,IF(AND(YEAR(OctSun1+19)=Kalenderår,MONTH(OctSun1+19)=10),OctSun1+19,\"\"),IF(AND(YEAR(OctSun1+26)=Kalenderår,MONTH(OctSun1+26)=10),OctSun1+26,\"\"))","v":"2020-10-23"},{"$f":"IF(DAY(OctSun1)=1,IF(AND(YEAR(OctSun1+20)=Kalenderår,MONTH(OctSun1+20)=10),OctSun1+20,\"\"),IF(AND(YEAR(OctSun1+27)=Kalenderår,MONTH(OctSun1+27)=10),OctSun1+27,\"\"))","v":"2020-10-24"},{"$f":"IF(DAY(OctSun1)=1,IF(AND(YEAR(OctSun1+21)=Kalenderår,MONTH(OctSun1+21)=10),OctSun1+21,\"\"),IF(AND(YEAR(OctSun1+28)=Kalenderår,MONTH(OctSun1+28)=10),OctSun1+28,\"\"))","v":"2020-10-25"},{"$nulls":3},"Adresse"]
["Angiv Postnummer og By i celle U45. Den næste vejledning er i celle A47",null,{"$f":"IF(DAY(SepSøn1)=1,IF(AND(YEAR(SepSøn1+22)=Kalenderår,MONTH(SepSøn1+22)=9),SepSøn1+22,\"\"),IF(AND(YEAR(SepSøn1+29)=Kalenderår,MONTH(SepSøn1+29)=9),SepSøn1+29,\"\"))","v":"2020-09-28"},{"$f":"IF(DAY(SepSøn1)=1,IF(AND(YEAR(SepSøn1+23)=Kalenderår,MONTH(SepSøn1+23)=9),SepSøn1+23,\"\"),IF(AND(YEAR(SepSøn1+30)=Kalenderår,MONTH(SepSøn1+30)=9),SepSøn1+30,\"\"))","v":"2020-09-29"},{"$f":"IF(DAY(SepSøn1)=1,IF(AND(YEAR(SepSøn1+24)=Kalenderår,MONTH(SepSøn1+24)=9),SepSøn1+24,\"\"),IF(AND(YEAR(SepSøn1+31)=Kalenderår,MONTH(SepSøn1+31)=9),SepSøn1+31,\"\"))","v":"2020-09-30"},{"$f":"IF(DAY(SepSøn1)=1,IF(AND(YEAR(SepSøn1+25)=Kalenderår,MONTH(SepSøn1+25)=9),SepSøn1+25,\"\"),IF(AND(YEAR(SepSøn1+32)=Kalenderår,MONTH(SepSøn1+32)=9),SepSøn1+32,\"\"))","v":""},{"$f":"IF(DAY(SepSøn1)=1,IF(AND(YEAR(SepSøn1+26)=Kalenderår,MONTH(SepSøn1+26)=9),SepSøn1+26,\"\"),IF(AND(YEAR(SepSøn1+33)=Kalenderår,MONTH(SepSøn1+33)=9),SepSøn1+33,\"\"))","v":""},{"$f":"IF(DAY(SepSøn1)=1,IF(AND(YEAR(SepSøn1+27)=Kalenderår,MONTH(SepSøn1+27)=9),SepSøn1+27,\"\"),IF(AND(YEAR(SepSøn1+34)=Kalenderår,MONTH(SepSøn1+34)=9),SepSøn1+34,\"\"))","v":""},{"$f":"IF(DAY(SepSøn1)=1,IF(AND(YEAR(SepSøn1+28)=Kalenderår,MONTH(SepSøn1+28)=9),SepSøn1+28,\"\"),IF(AND(YEAR(SepSøn1+35)=Kalenderår,MONTH(SepSøn1+35)=9),SepSøn1+35,\"\"))","v":""},null,{"$f":"IF(DAY(OctSun1)=1,IF(AND(YEAR(OctSun1+22)=Kalenderår,MONTH(OctSun1+22)=10),OctSun1+22,\"\"),IF(AND(YEAR(OctSun1+29)=Kalenderår,MONTH(OctSun1+29)=10),OctSun1+29,\"\"))","v":"2020-10-26"},{"$f":"IF(DAY(OctSun1)=1,IF(AND(YEAR(OctSun1+23)=Kalenderår,MONTH(OctSun1+23)=10),OctSun1+23,\"\"),IF(AND(YEAR(OctSun1+30)=Kalenderår,MONTH(OctSun1+30)=10),OctSun1+30,\"\"))","v":"2020-10-27"},{"$f":"IF(DAY(OctSun1)=1,IF(AND(YEAR(OctSun1+24)=Kalenderår,MONTH(OctSun1+24)=10),OctSun1+24,\"\"),IF(AND(YEAR(OctSun1+31)=Kalenderår,MONTH(OctSun1+31)=10),OctSun1+31,\"\"))","v":"2020-10-28"},{"$f":"IF(DAY(OctSun1)=1,IF(AND(YEAR(OctSun1+25)=Kalenderår,MONTH(OctSun1+25)=10),OctSun1+25,\"\"),IF(AND(YEAR(OctSun1+32)=Kalenderår,MONTH(OctSun1+32)=10),OctSun1+32,\"\"))","v":"2020-10-29"},{"$f":"IF(DAY(OctSun1)=1,IF(AND(YEAR(OctSun1+26)=Kalenderår,MONTH(OctSun1+26)=10),OctSun1+26,\"\"),IF(AND(YEAR(OctSun1+33)=Kalenderår,MONTH(OctSun1+33)=10),OctSun1+33,\"\"))","v":"2020-10-30"},{"$f":"IF(DAY(OctSun1)=1,IF(AND(YEAR(OctSun1+27)=Kalenderår,MONTH(OctSun1+27)=10),OctSun1+27,\"\"),IF(AND(YEAR(OctSun1+34)=Kalenderår,MONTH(OctSun1+34)=10),OctSun1+34,\"\"))","v":"2020-10-31"},{"$f":"IF(DAY(OctSun1)=1,IF(AND(YEAR(OctSun1+28)=Kalenderår,MONTH(OctSun1+28)=10),OctSun1+28,\"\"),IF(AND(YEAR(OctSun1+35)=Kalenderår,MONTH(OctSun1+35)=10),OctSun1+35,\"\"))","v":""},{"$nulls":3},"By, postnummer"]
[null,null,{"$f":"IF(DAY(SepSøn1)=1,IF(AND(YEAR(SepSøn1+29)=Kalenderår,MONTH(SepSøn1+29)=9),SepSøn1+29,\"\"),IF(AND(YEAR(SepSøn1+36)=Kalenderår,MONTH(SepSøn1+36)=9),SepSøn1+36,\"\"))","v":""},{"$f":"IF(DAY(SepSøn1)=1,IF(AND(YEAR(SepSøn1+30)=Kalenderår,MONTH(SepSøn1+30)=9),SepSøn1+30,\"\"),IF(AND(YEAR(SepSøn1+37)=Kalenderår,MONTH(SepSøn1+37)=9),SepSøn1+37,\"\"))","v":""},{"$f":"IF(DAY(SepSøn1)=1,IF(AND(YEAR(SepSøn1+31)=Kalenderår,MONTH(SepSøn1+31)=9),SepSøn1+31,\"\"),IF(AND(YEAR(SepSøn1+38)=Kalenderår,MONTH(SepSøn1+38)=9),SepSøn1+38,\"\"))","v":""},{"$f":"IF(DAY(SepSøn1)=1,IF(AND(YEAR(SepSøn1+32)=Kalenderår,MONTH(SepSøn1+32)=9),SepSøn1+32,\"\"),IF(AND(YEAR(SepSøn1+39)=Kalenderår,MONTH(SepSøn1+39)=9),SepSøn1+39,\"\"))","v":""},{"$f":"IF(DAY(SepSøn1)=1,IF(AND(YEAR(SepSøn1+33)=Kalenderår,MONTH(SepSøn1+33)=9),SepSøn1+33,\"\"),IF(AND(YEAR(SepSøn1+40)=Kalenderår,MONTH(SepSøn1+40)=9),SepSøn1+40,\"\"))","v":""},{"$f":"IF(DAY(SepSøn1)=1,IF(AND(YEAR(SepSøn1+34)=Kalenderår,MONTH(SepSøn1+34)=9),SepSøn1+34,\"\"),IF(AND(YEAR(SepSøn1+41)=Kalenderår,MONTH(SepSøn1+41)=9),SepSøn1+41,\"\"))","v":""},{"$f":"IF(DAY(SepSøn1)=1,IF(AND(YEAR(SepSøn1+35)=Kalenderår,MONTH(SepSøn1+35)=9),SepSøn1+35,\"\"),IF(AND(YEAR(SepSøn1+42)=Kalenderår,MONTH(SepSøn1+42)=9),SepSøn1+42,\"\"))","v":""},null,{"$f":"IF(DAY(OctSun1)=1,IF(AND(YEAR(OctSun1+29)=Kalenderår,MONTH(OctSun1+29)=10),OctSun1+29,\"\"),IF(AND(YEAR(OctSun1+36)=Kalenderår,MONTH(OctSun1+36)=10),OctSun1+36,\"\"))","v":""},{"$f":"IF(DAY(OctSun1)=1,IF(AND(YEAR(OctSun1+30)=Kalenderår,MONTH(OctSun1+30)=10),OctSun1+30,\"\"),IF(AND(YEAR(OctSun1+37)=Kalenderår,MONTH(OctSun1+37)=10),OctSun1+37,\"\"))","v":""},{"$f":"IF(DAY(OctSun1)=1,IF(AND(YEAR(OctSun1+31)=Kalenderår,MONTH(OctSun1+31)=10),OctSun1+31,\"\"),IF(AND(YEAR(OctSun1+38)=Kalenderår,MONTH(OctSun1+38)=10),OctSun1+38,\"\"))","v":""},{"$f":"IF(DAY(OctSun1)=1,IF(AND(YEAR(OctSun1+32)=Kalenderår,MONTH(OctSun1+32)=10),OctSun1+32,\"\"),IF(AND(YEAR(OctSun1+39)=Kalenderår,MONTH(OctSun1+39)=10),OctSun1+39,\"\"))","v":""},{"$f":"IF(DAY(OctSun1)=1,IF(AND(YEAR(OctSun1+33)=Kalenderår,MONTH(OctSun1+33)=10),OctSun1+33,\"\"),IF(AND(YEAR(OctSun1+40)=Kalenderår,MONTH(OctSun1+40)=10),OctSun1+40,\"\"))","v":""},{"$f":"IF(DAY(OctSun1)=1,IF(AND(YEAR(OctSun1+34)=Kalenderår,MONTH(OctSun1+34)=10),OctSun1+34,\"\"),IF(AND(YEAR(OctSun1+41)=Kalenderår,MONTH(OctSun1+41)=10),OctSun1+41,\"\"))","v":""},{"$f":"IF(DAY(OctSun1)=1,IF(AND(YEAR(OctSun1+35)=Kalenderår,MONTH(OctSun1+35)=10),OctSun1+35,\"\"),IF(AND(YEAR(OctSun1+42)=Kalenderår,MONTH(OctSun1+42)=10),OctSun1+42,\"\"))","v":""}]
["Angiv Firmaets Telefonnummer i celle U47",{"$nulls":19},"Telefon"]
["November-mærkat er i celle C48 og december i celle K48. Angiv Mailadresse i celle U48",null,"NOVEMBER",{"$nulls":7},"DECEMBER",{"$nulls":9},"Mail"]
["November-kalendertabel er i cellerne C49 til I55 og december-kalendertabel i cellerne K49 til Q55. Den næste vejledning er i celle A51.",null,"MAN","TIR","ONS","TOR","FRE","LØR","SØN",null,"MAN","TIR","ONS","TOR","FRE","LØR","SØN",{"$nulls":3},"Hjemmeside"]
[null,null,{"$f":"IF(DAY(NovSun1)=1,\"\",IF(AND(YEAR(NovSun1+1)=Kalenderår,MONTH(NovSun1+1)=11),NovSun1+1,\"\"))","v":""},{"$f":"IF(DAY(NovSun1)=1,\"\",IF(AND(YEAR(NovSun1+2)=Kalenderår,MONTH(NovSun1+2)=11),NovSun1+2,\"\"))","v":""},{"$f":"IF(DAY(NovSun1)=1,\"\",IF(AND(YEAR(NovSun1+3)=Kalenderår,MONTH(NovSun1+3)=11),NovSun1+3,\"\"))","v":""},{"$f":"IF(DAY(NovSun1)=1,\"\",IF(AND(YEAR(NovSun1+4)=Kalenderår,MONTH(NovSun1+4)=11),NovSun1+4,\"\"))","v":""},{"$f":"IF(DAY(NovSun1)=1,\"\",IF(AND(YEAR(NovSun1+5)=Kalenderår,MONTH(NovSun1+5)=11),NovSun1+5,\"\"))","v":""},{"$f":"IF(DAY(NovSun1)=1,\"\",IF(AND(YEAR(NovSun1+6)=Kalenderår,MONTH(NovSun1+6)=11),NovSun1+6,\"\"))","v":""},{"$f":"IF(DAY(NovSun1)=1,IF(AND(YEAR(NovSun1)=Kalenderår,MONTH(NovSun1)=11),NovSun1,\"\"),IF(AND(YEAR(NovSun1+7)=Kalenderår,MONTH(NovSun1+7)=11),NovSun1+7,\"\"))","v":"2020-11-01"},null,{"$f":"IF(DAY(DecSøn1)=1,\"\",IF(AND(YEAR(DecSøn1+1)=Kalenderår,MONTH(DecSøn1+1)=12),DecSøn1+1,\"\"))","v":""},{"$f":"IF(DAY(DecSøn1)=1,\"\",IF(AND(YEAR(DecSøn1+2)=Kalenderår,MONTH(DecSøn1+2)=12),DecSøn1+2,\"\"))","v":"2020-12-01"},{"$f":"IF(DAY(DecSøn1)=1,\"\",IF(AND(YEAR(DecSøn1+3)=Kalenderår,MONTH(DecSøn1+3)=12),DecSøn1+3,\"\"))","v":"2020-12-02"},{"$f":"IF(DAY(DecSøn1)=1,\"\",IF(AND(YEAR(DecSøn1+4)=Kalenderår,MONTH(DecSøn1+4)=12),DecSøn1+4,\"\"))","v":"2020-12-03"},{"$f":"IF(DAY(DecSøn1)=1,\"\",IF(AND(YEAR(DecSøn1+5)=Kalenderår,MONTH(DecSøn1+5)=12),DecSøn1+5,\"\"))","v":"2020-12-04"},{"$f":"IF(DAY(DecSøn1)=1,\"\",IF(AND(YEAR(DecSøn1+6)=Kalenderår,MONTH(DecSøn1+6)=12),DecSøn1+6,\"\"))","v":"2020-12-05"},{"$f":"IF(DAY(DecSøn1)=1,IF(AND(YEAR(DecSøn1)=Kalenderår,MONTH(DecSøn1)=12),DecSøn1,\"\"),IF(AND(YEAR(DecSøn1+7)=Kalenderår,MONTH(DecSøn1+7)=12),DecSøn1+7,\"\"))","v":"2020-12-06"}]
["Indsæt firmalogo i celle U51",null,{"$f":"IF(DAY(NovSun1)=1,IF(AND(YEAR(NovSun1+1)=Kalenderår,MONTH(NovSun1+1)=11),NovSun1+1,\"\"),IF(AND(YEAR(NovSun1+8)=Kalenderår,MONTH(NovSun1+8)=11),NovSun1+8,\"\"))","v":"2020-11-02"},{"$f":"IF(DAY(NovSun1)=1,IF(AND(YEAR(NovSun1+2)=Kalenderår,MONTH(NovSun1+2)=11),NovSun1+2,\"\"),IF(AND(YEAR(NovSun1+9)=Kalenderår,MONTH(NovSun1+9)=11),NovSun1+9,\"\"))","v":"2020-11-03"},{"$f":"IF(DAY(NovSun1)=1,IF(AND(YEAR(NovSun1+3)=Kalenderår,MONTH(NovSun1+3)=11),NovSun1+3,\"\"),IF(AND(YEAR(NovSun1+10)=Kalenderår,MONTH(NovSun1+10)=11),NovSun1+10,\"\"))","v":"2020-11-04"},{"$f":"IF(DAY(NovSun1)=1,IF(AND(YEAR(NovSun1+4)=Kalenderår,MONTH(NovSun1+4)=11),NovSun1+4,\"\"),IF(AND(YEAR(NovSun1+11)=Kalenderår,MONTH(NovSun1+11)=11),NovSun1+11,\"\"))","v":"2020-11-05"},{"$f":"IF(DAY(NovSun1)=1,IF(AND(YEAR(NovSun1+5)=Kalenderår,MONTH(NovSun1+5)=11),NovSun1+5,\"\"),IF(AND(YEAR(NovSun1+12)=Kalenderår,MONTH(NovSun1+12)=11),NovSun1+12,\"\"))","v":"2020-11-06"},{"$f":"IF(DAY(NovSun1)=1,IF(AND(YEAR(NovSun1+6)=Kalenderår,MONTH(NovSun1+6)=11),NovSun1+6,\"\"),IF(AND(YEAR(NovSun1+13)=Kalenderår,MONTH(NovSun1+13)=11),NovSun1+13,\"\"))","v":"2020-11-07"},{"$f":"IF(DAY(NovSun1)=1,IF(AND(YEAR(NovSun1+7)=Kalenderår,MONTH(NovSun1+7)=11),NovSun1+7,\"\"),IF(AND(YEAR(NovSun1+14)=Kalenderår,MONTH(NovSun1+14)=11),NovSun1+14,\"\"))","v":"2020-11-08"},null,{"$f":"IF(DAY(DecSøn1)=1,IF(AND(YEAR(DecSøn1+1)=Kalenderår,MONTH(DecSøn1+1)=12),DecSøn1+1,\"\"),IF(AND(YEAR(DecSøn1+8)=Kalenderår,MONTH(DecSøn1+8)=12),DecSøn1+8,\"\"))","v":"2020-12-07"},{"$f":"IF(DAY(DecSøn1)=1,IF(AND(YEAR(DecSøn1+2)=Kalenderår,MONTH(DecSøn1+2)=12),DecSøn1+2,\"\"),IF(AND(YEAR(DecSøn1+9)=Kalenderår,MONTH(DecSøn1+9)=12),DecSøn1+9,\"\"))","v":"2020-12-08"},{"$f":"IF(DAY(DecSøn1)=1,IF(AND(YEAR(DecSøn1+3)=Kalenderår,MONTH(DecSøn1+3)=12),DecSøn1+3,\"\"),IF(AND(YEAR(DecSøn1+10)=Kalenderår,MONTH(DecSøn1+10)=12),DecSøn1+10,\"\"))","v":"2020-12-09"},{"$f":"IF(DAY(DecSøn1)=1,IF(AND(YEAR(DecSøn1+4)=Kalenderår,MONTH(DecSøn1+4)=12),DecSøn1+4,\"\"),IF(AND(YEAR(DecSøn1+11)=Kalenderår,MONTH(DecSøn1+11)=12),DecSøn1+11,\"\"))","v":"2020-12-10"},{"$f":"IF(DAY(DecSøn1)=1,IF(AND(YEAR(DecSøn1+5)=Kalenderår,MONTH(DecSøn1+5)=12),DecSøn1+5,\"\"),IF(AND(YEAR(DecSøn1+12)=Kalenderår,MONTH(DecSøn1+12)=12),DecSøn1+12,\"\"))","v":"2020-12-11"},{"$f":"IF(DAY(DecSøn1)=1,IF(AND(YEAR(DecSøn1+6)=Kalenderår,MONTH(DecSøn1+6)=12),DecSøn1+6,\"\"),IF(AND(YEAR(DecSøn1+13)=Kalenderår,MONTH(DecSøn1+13)=12),DecSøn1+13,\"\"))","v":"2020-12-12"},{"$f":"IF(DAY(DecSøn1)=1,IF(AND(YEAR(DecSøn1+7)=Kalenderår,MONTH(DecSøn1+7)=12),DecSøn1+7,\"\"),IF(AND(YEAR(DecSøn1+14)=Kalenderår,MONTH(DecSøn1+14)=12),DecSøn1+14,\"\"))","v":"2020-12-13"},{"$nulls":3},"Pladsholder til logo er i denne celle."]
[null,null,{"$f":"IF(DAY(NovSun1)=1,IF(AND(YEAR(NovSun1+8)=Kalenderår,MONTH(NovSun1+8)=11),NovSun1+8,\"\"),IF(AND(YEAR(NovSun1+15)=Kalenderår,MONTH(NovSun1+15)=11),NovSun1+15,\"\"))","v":"2020-11-09"},{"$f":"IF(DAY(NovSun1)=1,IF(AND(YEAR(NovSun1+9)=Kalenderår,MONTH(NovSun1+9)=11),NovSun1+9,\"\"),IF(AND(YEAR(NovSun1+16)=Kalenderår,MONTH(NovSun1+16)=11),NovSun1+16,\"\"))","v":"2020-11-10"},{"$f":"IF(DAY(NovSun1)=1,IF(AND(YEAR(NovSun1+10)=Kalenderår,MONTH(NovSun1+10)=11),NovSun1+10,\"\"),IF(AND(YEAR(NovSun1+17)=Kalenderår,MONTH(NovSun1+17)=11),NovSun1+17,\"\"))","v":"2020-11-11"},{"$f":"IF(DAY(NovSun1)=1,IF(AND(YEAR(NovSun1+11)=Kalenderår,MONTH(NovSun1+11)=11),NovSun1+11,\"\"),IF(AND(YEAR(NovSun1+18)=Kalenderår,MONTH(NovSun1+18)=11),NovSun1+18,\"\"))","v":"2020-11-12"},{"$f":"IF(DAY(NovSun1)=1,IF(AND(YEAR(NovSun1+12)=Kalenderår,MONTH(NovSun1+12)=11),NovSun1+12,\"\"),IF(AND(YEAR(NovSun1+19)=Kalenderår,MONTH(NovSun1+19)=11),NovSun1+19,\"\"))","v":"2020-11-13"},{"$f":"IF(DAY(NovSun1)=1,IF(AND(YEAR(NovSun1+13)=Kalenderår,MONTH(NovSun1+13)=11),NovSun1+13,\"\"),IF(AND(YEAR(NovSun1+20)=Kalenderår,MONTH(NovSun1+20)=11),NovSun1+20,\"\"))","v":"2020-11-14"},{"$f":"IF(DAY(NovSun1)=1,IF(AND(YEAR(NovSun1+14)=Kalenderår,MONTH(NovSun1+14)=11),NovSun1+14,\"\"),IF(AND(YEAR(NovSun1+21)=Kalenderår,MONTH(NovSun1+21)=11),NovSun1+21,\"\"))","v":"2020-11-15"},null,{"$f":"IF(DAY(DecSøn1)=1,IF(AND(YEAR(DecSøn1+8)=Kalenderår,MONTH(DecSøn1+8)=12),DecSøn1+8,\"\"),IF(AND(YEAR(DecSøn1+15)=Kalenderår,MONTH(DecSøn1+15)=12),DecSøn1+15,\"\"))","v":"2020-12-14"},{"$f":"IF(DAY(DecSøn1)=1,IF(AND(YEAR(DecSøn1+9)=Kalenderår,MONTH(DecSøn1+9)=12),DecSøn1+9,\"\"),IF(AND(YEAR(DecSøn1+16)=Kalenderår,MONTH(DecSøn1+16)=12),DecSøn1+16,\"\"))","v":"2020-12-15"},{"$f":"IF(DAY(DecSøn1)=1,IF(AND(YEAR(DecSøn1+10)=Kalenderår,MONTH(DecSøn1+10)=12),DecSøn1+10,\"\"),IF(AND(YEAR(DecSøn1+17)=Kalenderår,MONTH(DecSøn1+17)=12),DecSøn1+17,\"\"))","v":"2020-12-16"},{"$f":"IF(DAY(DecSøn1)=1,IF(AND(YEAR(DecSøn1+11)=Kalenderår,MONTH(DecSøn1+11)=12),DecSøn1+11,\"\"),IF(AND(YEAR(DecSøn1+18)=Kalenderår,MONTH(DecSøn1+18)=12),DecSøn1+18,\"\"))","v":"2020-12-17"},{"$f":"IF(DAY(DecSøn1)=1,IF(AND(YEAR(DecSøn1+12)=Kalenderår,MONTH(DecSøn1+12)=12),DecSøn1+12,\"\"),IF(AND(YEAR(DecSøn1+19)=Kalenderår,MONTH(DecSøn1+19)=12),DecSøn1+19,\"\"))","v":"2020-12-18"},{"$f":"IF(DAY(DecSøn1)=1,IF(AND(YEAR(DecSøn1+13)=Kalenderår,MONTH(DecSøn1+13)=12),DecSøn1+13,\"\"),IF(AND(YEAR(DecSøn1+20)=Kalenderår,MONTH(DecSøn1+20)=12),DecSøn1+20,\"\"))","v":"2020-12-19"},{"$f":"IF(DAY(DecSøn1)=1,IF(AND(YEAR(DecSøn1+14)=Kalenderår,MONTH(DecSøn1+14)=12),DecSøn1+14,\"\"),IF(AND(YEAR(DecSøn1+21)=Kalenderår,MONTH(DecSøn1+21)=12),DecSøn1+21,\"\"))","v":"2020-12-20"}]
[null,null,{"$f":"IF(DAY(NovSun1)=1,IF(AND(YEAR(NovSun1+15)=Kalenderår,MONTH(NovSun1+15)=11),NovSun1+15,\"\"),IF(AND(YEAR(NovSun1+22)=Kalenderår,MONTH(NovSun1+22)=11),NovSun1+22,\"\"))","v":"2020-11-16"},{"$f":"IF(DAY(NovSun1)=1,IF(AND(YEAR(NovSun1+16)=Kalenderår,MONTH(NovSun1+16)=11),NovSun1+16,\"\"),IF(AND(YEAR(NovSun1+23)=Kalenderår,MONTH(NovSun1+23)=11),NovSun1+23,\"\"))","v":"2020-11-17"},{"$f":"IF(DAY(NovSun1)=1,IF(AND(YEAR(NovSun1+17)=Kalenderår,MONTH(NovSun1+17)=11),NovSun1+17,\"\"),IF(AND(YEAR(NovSun1+24)=Kalenderår,MONTH(NovSun1+24)=11),NovSun1+24,\"\"))","v":"2020-11-18"},{"$f":"IF(DAY(NovSun1)=1,IF(AND(YEAR(NovSun1+18)=Kalenderår,MONTH(NovSun1+18)=11),NovSun1+18,\"\"),IF(AND(YEAR(NovSun1+25)=Kalenderår,MONTH(NovSun1+25)=11),NovSun1+25,\"\"))","v":"2020-11-19"},{"$f":"IF(DAY(NovSun1)=1,IF(AND(YEAR(NovSun1+19)=Kalenderår,MONTH(NovSun1+19)=11),NovSun1+19,\"\"),IF(AND(YEAR(NovSun1+26)=Kalenderår,MONTH(NovSun1+26)=11),NovSun1+26,\"\"))","v":"2020-11-20"},{"$f":"IF(DAY(NovSun1)=1,IF(AND(YEAR(NovSun1+20)=Kalenderår,MONTH(NovSun1+20)=11),NovSun1+20,\"\"),IF(AND(YEAR(NovSun1+27)=Kalenderår,MONTH(NovSun1+27)=11),NovSun1+27,\"\"))","v":"2020-11-21"},{"$f":"IF(DAY(NovSun1)=1,IF(AND(YEAR(NovSun1+21)=Kalenderår,MONTH(NovSun1+21)=11),NovSun1+21,\"\"),IF(AND(YEAR(NovSun1+28)=Kalenderår,MONTH(NovSun1+28)=11),NovSun1+28,\"\"))","v":"2020-11-22"},null,{"$f":"IF(DAY(DecSøn1)=1,IF(AND(YEAR(DecSøn1+15)=Kalenderår,MONTH(DecSøn1+15)=12),DecSøn1+15,\"\"),IF(AND(YEAR(DecSøn1+22)=Kalenderår,MONTH(DecSøn1+22)=12),DecSøn1+22,\"\"))","v":"2020-12-21"},{"$f":"IF(DAY(DecSøn1)=1,IF(AND(YEAR(DecSøn1+16)=Kalenderår,MONTH(DecSøn1+16)=12),DecSøn1+16,\"\"),IF(AND(YEAR(DecSøn1+23)=Kalenderår,MONTH(DecSøn1+23)=12),DecSøn1+23,\"\"))","v":"2020-12-22"},{"$f":"IF(DAY(DecSøn1)=1,IF(AND(YEAR(DecSøn1+17)=Kalenderår,MONTH(DecSøn1+17)=12),DecSøn1+17,\"\"),IF(AND(YEAR(DecSøn1+24)=Kalenderår,MONTH(DecSøn1+24)=12),DecSøn1+24,\"\"))","v":"2020-12-23"},{"$f":"IF(DAY(DecSøn1)=1,IF(AND(YEAR(DecSøn1+18)=Kalenderår,MONTH(DecSøn1+18)=12),DecSøn1+18,\"\"),IF(AND(YEAR(DecSøn1+25)=Kalenderår,MONTH(DecSøn1+25)=12),DecSøn1+25,\"\"))","v":"2020-12-24"},{"$f":"IF(DAY(DecSøn1)=1,IF(AND(YEAR(DecSøn1+19)=Kalenderår,MONTH(DecSøn1+19)=12),DecSøn1+19,\"\"),IF(AND(YEAR(DecSøn1+26)=Kalenderår,MONTH(DecSøn1+26)=12),DecSøn1+26,\"\"))","v":"2020-12-25"},{"$f":"IF(DAY(DecSøn1)=1,IF(AND(YEAR(DecSøn1+20)=Kalenderår,MONTH(DecSøn1+20)=12),DecSøn1+20,\"\"),IF(AND(YEAR(DecSøn1+27)=Kalenderår,MONTH(DecSøn1+27)=12),DecSøn1+27,\"\"))","v":"2020-12-26"},{"$f":"IF(DAY(DecSøn1)=1,IF(AND(YEAR(DecSøn1+21)=Kalenderår,MONTH(DecSøn1+21)=12),DecSøn1+21,\"\"),IF(AND(YEAR(DecSøn1+28)=Kalenderår,MONTH(DecSøn1+28)=12),DecSøn1+28,\"\"))","v":"2020-12-27"}]
[null,null,{"$f":"IF(DAY(NovSun1)=1,IF(AND(YEAR(NovSun1+22)=Kalenderår,MONTH(NovSun1+22)=11),NovSun1+22,\"\"),IF(AND(YEAR(NovSun1+29)=Kalenderår,MONTH(NovSun1+29)=11),NovSun1+29,\"\"))","v":"2020-11-23"},{"$f":"IF(DAY(NovSun1)=1,IF(AND(YEAR(NovSun1+23)=Kalenderår,MONTH(NovSun1+23)=11),NovSun1+23,\"\"),IF(AND(YEAR(NovSun1+30)=Kalenderår,MONTH(NovSun1+30)=11),NovSun1+30,\"\"))","v":"2020-11-24"},{"$f":"IF(DAY(NovSun1)=1,IF(AND(YEAR(NovSun1+24)=Kalenderår,MONTH(NovSun1+24)=11),NovSun1+24,\"\"),IF(AND(YEAR(NovSun1+31)=Kalenderår,MONTH(NovSun1+31)=11),NovSun1+31,\"\"))","v":"2020-11-25"},{"$f":"IF(DAY(NovSun1)=1,IF(AND(YEAR(NovSun1+25)=Kalenderår,MONTH(NovSun1+25)=11),NovSun1+25,\"\"),IF(AND(YEAR(NovSun1+32)=Kalenderår,MONTH(NovSun1+32)=11),NovSun1+32,\"\"))","v":"2020-11-26"},{"$f":"IF(DAY(NovSun1)=1,IF(AND(YEAR(NovSun1+26)=Kalenderår,MONTH(NovSun1+26)=11),NovSun1+26,\"\"),IF(AND(YEAR(NovSun1+33)=Kalenderår,MONTH(NovSun1+33)=11),NovSun1+33,\"\"))","v":"2020-11-27"},{"$f":"IF(DAY(NovSun1)=1,IF(AND(YEAR(NovSun1+27)=Kalenderår,MONTH(NovSun1+27)=11),NovSun1+27,\"\"),IF(AND(YEAR(NovSun1+34)=Kalenderår,MONTH(NovSun1+34)=11),NovSun1+34,\"\"))","v":"2020-11-28"},{"$f":"IF(DAY(NovSun1)=1,IF(AND(YEAR(NovSun1+28)=Kalenderår,MONTH(NovSun1+28)=11),NovSun1+28,\"\"),IF(AND(YEAR(NovSun1+35)=Kalenderår,MONTH(NovSun1+35)=11),NovSun1+35,\"\"))","v":"2020-11-29"},null,{"$f":"IF(DAY(DecSøn1)=1,IF(AND(YEAR(DecSøn1+22)=Kalenderår,MONTH(DecSøn1+22)=12),DecSøn1+22,\"\"),IF(AND(YEAR(DecSøn1+29)=Kalenderår,MONTH(DecSøn1+29)=12),DecSøn1+29,\"\"))","v":"2020-12-28"},{"$f":"IF(DAY(DecSøn1)=1,IF(AND(YEAR(DecSøn1+23)=Kalenderår,MONTH(DecSøn1+23)=12),DecSøn1+23,\"\"),IF(AND(YEAR(DecSøn1+30)=Kalenderår,MONTH(DecSøn1+30)=12),DecSøn1+30,\"\"))","v":"2020-12-29"},{"$f":"IF(DAY(DecSøn1)=1,IF(AND(YEAR(DecSøn1+24)=Kalenderår,MONTH(DecSøn1+24)=12),DecSøn1+24,\"\"),IF(AND(YEAR(DecSøn1+31)=Kalenderår,MONTH(DecSøn1+31)=12),DecSøn1+31,\"\"))","v":"2020-12-30"},{"$f":"IF(DAY(DecSøn1)=1,IF(AND(YEAR(DecSøn1+25)=Kalenderår,MONTH(DecSøn1+25)=12),DecSøn1+25,\"\"),IF(AND(YEAR(DecSøn1+32)=Kalenderår,MONTH(DecSøn1+32)=12),DecSøn1+32,\"\"))","v":"2020-12-31"},{"$f":"IF(DAY(DecSøn1)=1,IF(AND(YEAR(DecSøn1+26)=Kalenderår,MONTH(DecSøn1+26)=12),DecSøn1+26,\"\"),IF(AND(YEAR(DecSøn1+33)=Kalenderår,MONTH(DecSøn1+33)=12),DecSøn1+33,\"\"))","v":""},{"$f":"IF(DAY(DecSøn1)=1,IF(AND(YEAR(DecSøn1+27)=Kalenderår,MONTH(DecSøn1+27)=12),DecSøn1+27,\"\"),IF(AND(YEAR(DecSøn1+34)=Kalenderår,MONTH(DecSøn1+34)=12),DecSøn1+34,\"\"))","v":""},{"$f":"IF(DAY(DecSøn1)=1,IF(AND(YEAR(DecSøn1+28)=Kalenderår,MONTH(DecSøn1+28)=12),DecSøn1+28,\"\"),IF(AND(YEAR(DecSøn1+35)=Kalenderår,MONTH(DecSøn1+35)=12),DecSøn1+35,\"\"))","v":""}]
[null,null,{"$f":"IF(DAY(NovSun1)=1,IF(AND(YEAR(NovSun1+29)=Kalenderår,MONTH(NovSun1+29)=11),NovSun1+29,\"\"),IF(AND(YEAR(NovSun1+36)=Kalenderår,MONTH(NovSun1+36)=11),NovSun1+36,\"\"))","v":"2020-11-30"},{"$f":"IF(DAY(NovSun1)=1,IF(AND(YEAR(NovSun1+30)=Kalenderår,MONTH(NovSun1+30)=11),NovSun1+30,\"\"),IF(AND(YEAR(NovSun1+37)=Kalenderår,MONTH(NovSun1+37)=11),NovSun1+37,\"\"))","v":""},{"$f":"IF(DAY(NovSun1)=1,IF(AND(YEAR(NovSun1+31)=Kalenderår,MONTH(NovSun1+31)=11),NovSun1+31,\"\"),IF(AND(YEAR(NovSun1+38)=Kalenderår,MONTH(NovSun1+38)=11),NovSun1+38,\"\"))","v":""},{"$f":"IF(DAY(NovSun1)=1,IF(AND(YEAR(NovSun1+32)=Kalenderår,MONTH(NovSun1+32)=11),NovSun1+32,\"\"),IF(AND(YEAR(NovSun1+39)=Kalenderår,MONTH(NovSun1+39)=11),NovSun1+39,\"\"))","v":""},{"$f":"IF(DAY(NovSun1)=1,IF(AND(YEAR(NovSun1+33)=Kalenderår,MONTH(NovSun1+33)=11),NovSun1+33,\"\"),IF(AND(YEAR(NovSun1+40)=Kalenderår,MONTH(NovSun1+40)=11),NovSun1+40,\"\"))","v":""},{"$f":"IF(DAY(NovSun1)=1,IF(AND(YEAR(NovSun1+34)=Kalenderår,MONTH(NovSun1+34)=11),NovSun1+34,\"\"),IF(AND(YEAR(NovSun1+41)=Kalenderår,MONTH(NovSun1+41)=11),NovSun1+41,\"\"))","v":""},{"$f":"IF(DAY(NovSun1)=1,IF(AND(YEAR(NovSun1+35)=Kalenderår,MONTH(NovSun1+35)=11),NovSun1+35,\"\"),IF(AND(YEAR(NovSun1+42)=Kalenderår,MONTH(NovSun1+42)=11),NovSun1+42,\"\"))","v":""},null,{"$f":"IF(DAY(DecSøn1)=1,IF(AND(YEAR(DecSøn1+29)=Kalenderår,MONTH(DecSøn1+29)=12),DecSøn1+29,\"\"),IF(AND(YEAR(DecSøn1+36)=Kalenderår,MONTH(DecSøn1+36)=12),DecSøn1+36,\"\"))","v":""},{"$f":"IF(DAY(DecSøn1)=1,IF(AND(YEAR(DecSøn1+30)=Kalenderår,MONTH(DecSøn1+30)=12),DecSøn1+30,\"\"),IF(AND(YEAR(DecSøn1+37)=Kalenderår,MONTH(DecSøn1+37)=12),DecSøn1+37,\"\"))","v":""},{"$f":"IF(DAY(DecSøn1)=1,IF(AND(YEAR(DecSøn1+31)=Kalenderår,MONTH(DecSøn1+31)=12),DecSøn1+31,\"\"),IF(AND(YEAR(DecSøn1+38)=Kalenderår,MONTH(DecSøn1+38)=12),DecSøn1+38,\"\"))","v":""},{"$f":"IF(DAY(DecSøn1)=1,IF(AND(YEAR(DecSøn1+32)=Kalenderår,MONTH(DecSøn1+32)=12),DecSøn1+32,\"\"),IF(AND(YEAR(DecSøn1+39)=Kalenderår,MONTH(DecSøn1+39)=12),DecSøn1+39,\"\"))","v":""},{"$f":"IF(DAY(DecSøn1)=1,IF(AND(YEAR(DecSøn1+33)=Kalenderår,MONTH(DecSøn1+33)=12),DecSøn1+33,\"\"),IF(AND(YEAR(DecSøn1+40)=Kalenderår,MONTH(DecSøn1+40)=12),DecSøn1+40,\"\"))","v":""},{"$f":"IF(DAY(DecSøn1)=1,IF(AND(YEAR(DecSøn1+34)=Kalenderår,MONTH(DecSøn1+34)=12),DecSøn1+34,\"\"),IF(AND(YEAR(DecSøn1+41)=Kalenderår,MONTH(DecSøn1+41)=12),DecSøn1+41,\"\"))","v":""},{"$f":"IF(DAY(DecSøn1)=1,IF(AND(YEAR(DecSøn1+35)=Kalenderår,MONTH(DecSøn1+35)=12),DecSøn1+35,\"\"),IF(AND(YEAR(DecSøn1+42)=Kalenderår,MONTH(DecSøn1+42)=12),DecSøn1+42,\"\"))","v":""}]